Workbook

Sheet OPERACIONES PREVIAS
B2: Solicitante: | C2: SCHLUMBERGER SURENCO S A | I2: Número de certificado: | K2: DID-159-3123
B3: Dirección: | C3: KILOMETRO 1.5 VIA SIBERIA COTA PARQUE INDUSTRIAL POTRERO CHICO, COTA | I3: Número de ingreso: | K3: 18200
I4: ="Intervalo de medida "&"("&D9&"):" -> Intervalo de medida (psi): | K4: 0 | L4: 1500
B5: Instrumento: | D5: MANÓMETRO | G5: ANALÓGICO | I5: ="Intervalo de calibration "&"("&D9&"):" -> Intervalo de calibration (psi): | K5: 0 | L5: 1500
B6: Fabricante: | D6: STEWARTS-USA | I6: División de escala: | K6: 25 | L6: =D9 -> psi
B7: Modelo: | D7: NO IDENTIFICABLE | I7: Resolución: | K7: 12.5 | L7: =D9 -> psi
B8: Serie: | D8: CR-1419 | I8: Clase: | K8: 1.6 | L8: DEL RANGO
B9: Unidad de calibración: | D9: psi | E9: Coef senc: | F9: 0 | G9: % | I9: Tope en el cero: | K9: NO
K10: =(K8*L5)/100 -> 24
B11: Fecha de recepción: | D11: 2020-12-14 | I11: Fecha de expedición | K11: 2020-12-23
B12: Fecha de calibración: | D12: 2020-12-23 | I12: Próxima calibración:
B14: Fluido usado : | D14: Alcohol | I14: Altura Patrón: | K14: 200 | L14: mm
B15: Cuenta con gliserina: | D15: NO | I15: Altura IBC: | K15: 240 | L15: mm
B16: Regla de desición: | D16: NO | I16: Suministro de regla: | K16: N/A
B18: Dirección de calibración:
B20: Suministro de regla:
B21: La regla de decisión usada fue dada por el cliente.
B28: Verificar que: | G28: SÍ | H28: NO | I28: OBSERVACIONES
B29: El instrumento patrón cuenta con certificado de calibración vigente, trazable a una entidad acreditada o a un laboratorio nacional y cubrir todo el rango del manómetro a calibrar. | G29: a
B32: La incertidumbre del patrón es al menos cuatro veces mejor que la incertidumbre máxima que se espera del manómetro a calibrar | G32: a
B35: El banco generador de presión es capaz de regular con valores mejores que la resolución del manómetro a calibrar. | G35: a
B38: Se usan para la medida de condiciones ambientales instrumentos con exactitud de al menos 1 °C para la medida de la temperatura y ±5% HR para la medida de la humedad relativa. | G38: a
B41: El instrumento esta identificado con su marca, modelo y número de serie correspondiente o con un código interno del propietario. | G41: a
B44: Se comprobó el estado de la carátula y aguja indicadora para manómetros analógicos y/o del dispositivo indicador para manómetros digitales. | G44: a
B47: Se comprobaron fugas en el sistema. | G47: a
B50: Se realizó la medición de la diferencia de alturas entre los niveles de referencia. | G50: a
B53: Se desperezó el manómetro subiendo y bajando presión dos o tres veces hasta fondo de escala. | G53: a
B56: El patrón se programó a ser posible en las mismas unidades que el manómetro a calibrar. | G56: a
B59: Se comprobó que el manómetro esté identificado con su marca, modelo y número de serie correspondiente, o con un código interno del propietario? | G59: a
B63: PRECARGAS
E65: Valor Nominal | F65: Lectura 1 | G65: Lectura 2 | H65: Lectura 3
E66: ='OPERACIONES PREVIAS'!L6 -> psi
E67: ='OPERACIONES PREVIAS'!L5 -> 1500 | F67: 1493.2 | G67: 1493.2 | H67: 1492.3
B69: ESTADO DEL MANÓMETRO
C71: Presión Nominal | E71: Lectura Patrón | G71: Error por Ecuación | I71: Lectura Patrón Corregida | J71: Lectura IBC | K71: Corrección de medida
C73: % F.S | D73: ='OPERACIONES PREVIAS'!$D$9 -> psi | E73: ='OPERACIONES PREVIAS'!$D$9 -> psi | F73: =IF(REGISTRO!B71="-30","inHg","psi") -> psi | G73: =F73 -> psi | H73: =E73 -> psi | I73: ='OPERACIONES PREVIAS'!$D$9 -> psi | J73: ='OPERACIONES PREVIAS'!$D$9 -> psi | K73: ='OPERACIONES PREVIAS'!$D$9 -> psi
C74: 0.3 | D74: =C74*'OPERACIONES PREVIAS'!$L$5 -> 450 | E74: 450.8 | F74: =E74*REGISTRO!$P$20 -> 450.8 | G74: =F74-(a_0+(a_1*F74)+(a_2*F74^2)+(a_3*F74^3)+(a_4*F74^4)+(a_5*F74^5)) -> 0.1204155345 | H74: =G74/REGISTRO!$P$20 -> 0.1204155345 | I74: =E74-H74 -> 450.6795845 | J74: 450 | K74: =I74-J74 -> 0.6795844655
C75: 0.6 | D75: =C75*'OPERACIONES PREVIAS'!$L$5 -> 900 | E75: 902.3 | F75: =E75*REGISTRO!$P$20 -> 902.3 | G75: =F75-(a_0+(a_1*F75)+(a_2*F75^2)+(a_3*F75^3)+(a_4*F75^4)+(a_5*F75^5)) -> 0.1785135767 | H75: =G75/REGISTRO!$P$20 -> 0.1785135767 | I75: =E75-H75 -> 902.1214864 | J75: 900 | K75: =I75-J75 -> 2.121486423
C76: 1 | D76: =C76*'OPERACIONES PREVIAS'!$L$5 -> 1500 | E76: 1493.8 | F76: =E76*REGISTRO!$P$20 -> 1493.8 | G76: =F76-(a_0+(a_1*F76)+(a_2*F76^2)+(a_3*F76^3)+(a_4*F76^4)+(a_5*F76^5)) -> 0.1909060961 | H76: =G76/REGISTRO!$P$20 -> 0.1909060961 | I76: =E76-H76 -> 1493.609094 | J76: 1500 | K76: =I76-J76 -> -6.390906096
H77: =IF(ABS('OPERACIONES PREVIAS'!K10)<ABS(K74),"Requiere ajuste",IF(ABS('OPERACIONES PREVIAS'!K10)<ABS(K75),"Requiere ajuste",IF(ABS('OPERACIONES PREVIAS'!K10)<ABS(K76),"Requiere ajuste"," "))) -> 
B79: OBSERVACONES
C89: Realizo | D89: MICHAEL VALERO | G89: Cargo | H89: =VLOOKUP(D89,REGISTRO!F169:G172,2,0) -> ESPECIALISTA TÉCNICO

Sheet REGISTRO
B1: 12345
N2: DATOS DE CALIBRACIÓN DEL PATRÓN | T2: Sí | V2: Tipo de fluido | W2: Densidad | X2: U | AB2: Resolución Patrón | AC2: Resolución IBC | AE2: 0 | AF2: 0
B3: CONDICIONES AMBIENTALES | N3: =VLOOKUP(D10,X26:Z35,3,0) -> DATOS_3000 | T3: NO | V3: Aceite | W3: 863.3 | X3: 86.3 | Y3: kg/m3 | AE3: 1 | AF3: 0.0
B4: CALIBRACIÓN EN: | E4: INSTALACIONES PERMANENTES | N4: Lectura Patrón | O4: Lectura IBC | P4: Error de Medición | Q4: U Expandida | R4: Deriva | V4: Alcohol | W4: 812.8 | X4: 81.28 | Y4: kg/m3 | AE4: 2 | AF4: 0.00
V5: Agua | W5: 998.193 | X5: 0.01 | Y5: kg/m3 | AB5: psi | AC5: psi | AE5: 3 | AF5: 0.000
B6: DATOS DEL PATRÓN | N6: psi | O6: psi | P6: psi | Q6: psi | R6: psi | V6: Aire | W6: 0.8876 | X6: 0.012 | Y6: kg/m3 | AA6: Resolución | AB6: =$D$17 -> 0 | AC6: ='OPERACIONES PREVIAS'!$K$7 -> 12.5 | AE6: 4 | AF6: 0.0000
B7: Patrón usado: | D7: =IF(D10<0,"VACÚOMETRO DIGITAL","MANÓMETRO DIGITAL") -> MANÓMETRO DIGITAL | G7: CORRECCIÓN POR DIFERENCIA DE ALTURAS | N7: =INDIRECT(N3) -> 296.25 | O7: 296.2 | P7: -0.05 | Q7: 0.084 | R7: 0.03 | AA7: Decimales | AB7: =IF((LEN(AB6)-LEN(INT(AB6))-1)<0,0,(LEN(AB6)-LEN(INT(AB6))-1)) -> 0 | AC7: =IF((LEN(AC6)-LEN(INT(AC6))-1)<0,0,(LEN(AC6)-LEN(INT(AC6))-1)) -> 1 | AE7: 5 | AF7: 0.00000
B8: Marca: | D8: =VLOOKUP($D$10,LISTADO_PATRONES,2,0) -> ADDITEL | G8: Magnitud | I8: Valor | J8: U | K8: Unidad | N8: 592.75 | O8: 592.6 | P8: -0.15 | Q8: 0.086 | R8: 0.11 | V8: Incertidumbre de la regla patrón | AA8: Formato | AB8: =VLOOKUP(AB7,AE2:AF11,2,FALSE) -> 0 | AC8: =VLOOKUP(AC7,AE2:AF11,2,FALSE) -> 0.0 | AE8: 6 | AF8: 0.000000
B9: Modelo: | D9: =VLOOKUP($D$10,LISTADO_PATRONES,3,0) -> ADT672 | G9: Diferencia de alturas (h): | I9: =(MAX('CORRECCIÓN EQUIPOS AUX'!Q94,'CORRECCIÓN EQUIPOS AUX'!Q97)-MIN('CORRECCIÓN EQUIPOS AUX'!Q94,'CORRECCIÓN EQUIPOS AUX'!Q97))/1000 -> 0.08000245952 | J9: =V10 -> 3.15553989e-05 | K9: m | N9: 896.47 | O9: 896.3 | P9: -0.17 | Q9: 0.09 | R9: 0.13 | T9: ANALÓGICO | V9: U Regla patrón | AE9: 7 | AF9: 0.0000000
B10: Rango de medida: | D10: 3000 | G10: Densidad del fluido (ρf): | I10: =VLOOKUP('OPERACIONES PREVIAS'!D14,V3:X6,2,0) -> 812.8 | J10: =VLOOKUP('OPERACIONES PREVIAS'!D14,V3:X6,3,0) -> 81.28 | K10: kg/m3 | N10: 1192.97 | O10: 1192.8 | P10: -0.17 | Q10: 0.095 | R10: 0.18 | T10: DIGITAL | V10: ='CORRECCIÓN EQUIPOS AUX'!H87/1000 -> 3.15553989e-05 | AE10: 8 | AF10: 0.00000000
B11: Certificado No. | D11: =VLOOKUP($D$10,LISTADO_PATRONES,6,0) -> LPR181275a | G11: Densidad del aire (ρa): | I11: =W6 -> 0.8876 | J11: 0.012 | K11: kg/m3 | N11: 1489.47 | O11: 1489.3 | P11: -0.17 | Q11: 0.101 | R11: 0.18 | AE11: 9 | AF11: 0.000000000
B12: Fecha de calibración: | D12: =VLOOKUP($D$10,LISTADO_PATRONES,7,0) -> 2018-10-12 | G12: Aceleración gravedad (gl): | I12: 9.8 | J12: 0.05 | K12: m/s2 | N12: 1793.2 | O12: 1793 | P12: -0.2 | Q12: 0.109 | R12: 0.38 | T12: Del rango
B13: Próxima calibración: | D13: =VLOOKUP($D$10,LISTADO_PATRONES,8,0) -> 2020-10-12 | G13: Corrección por diferencia de alturas (ΔNR) | I13: =(I10-I11)*I12*I9 -> 636.5588914 | J13: ΔNR = ((ρf - ρa) ∙ gl ∙ h) | N13: 2089.69 | O13: 2089.5 | P13: -0.19 | Q13: 0.119 | R13: 0.28 | T13: De lectura
B14: Serie interna: | D14: =VLOOKUP($D$10,LISTADO_PATRONES,4,0) -> CS-MP-010 / 27312320013 | I14: =I13/VLOOKUP(J103,CONVERSION,MATCH(I103,'TABLA DE CONVERSIÓN'!$B$2:$M$2,0)+1,0) -> 0.09232502529 | N14: 2386.19 | O14: 2386 | P14: -0.19 | Q14: 0.138 | R14: 0.29
B15: Precisión: | D15: =VLOOKUP($D$10,LISTADO_PATRONES,9,0) -> 0.00025 | N15: 2689.91 | O15: 2689.7 | P15: -0.21 | Q15: 0.159 | R15: 0.28 | T15: MANÓMETRO | AC15: CMC | AF15: CONVERCIÓN
B16: Deriva: | D16: =VLOOKUP($D$10,LISTADO_PATRONES,11,0) -> 0.75 | G16: NOTA: Se debe asegurar que las condiciones ambientales, en cuanto a temperatura y humedad, estarán dentro de los márgenes especificados por los fabricantes de manómetro a calibrar y del manómetro utilizado como patrón. | N16: 3000.86 | O16: 3000.6 | P16: -0.26 | Q16: 0.18 | R16: 0.37 | T16: MANOVACUÓMETRO | AC16: INTERVALO | AD16: psi | AF16: INTERVALO | AG16: ='OPERACIONES PREVIAS'!D9 -> psi
B17: Resolución: | E17: ='OPERACIONES PREVIAS'!D9 -> psi | T17: VACUÓMETRO | AC17: -10 | AD17: 0.034 | AF17: =AC17/$P$20 -> -10 | AG17: =AD17/$P$20 -> 0.034
B18: Coef senc: | D18: 0 | E18: % | N18: Unidad de calibración: | P18: ='OPERACIONES PREVIAS'!$D$9 -> psi | T18: TRANSMISOR DE PRESIÓN ESTÁTICA | V18: metodo | AC18: 50 | AD18: 0.033 | AF18: =AC18/$P$20 -> 50 | AG18: =AD18/$P$20 -> 0.033
B19: patrón | C19: =D10*D15 -> 0.75 | D19: Relación de U (TAR) | E19: =C20/C19 -> 32 | N19: Unidad del patrón: | P19: =$F$28 -> psi | T19: TRANSMISOR DE PRESIÓN DIFERENCIA | V19: U metodo | X19: 0.01495383385 | Y19: psi | AC19: 300 | AD19: 0.044 | AF19: 300 | AG19: 0.044
B20: IBC | C20: =('OPERACIONES PREVIAS'!L4*'OPERACIONES PREVIAS'!K8)/100 -> 24 | N20: Conversión: | O20: =1&" "&P18&" "&" = " -> 1 psi = | P20: =VLOOKUP($P$18,CONVERSION,MATCH($P$19,'TABLA DE CONVERSIÓN'!$B$2:$M$2,0)+1,FALSE) -> 1 | Q20: =$P$19 -> psi | T20: REGISTRADOR DE PRESIÓN ESTÁTICA | V20: Incertidumbre metodo | X20: =IF('OPERACIONES PREVIAS'!D9="psi",REGISTRO!X19,IF('OPERACIONES PREVIAS'!D9="bar",REGISTRO!X19/REGISTRO!P20,REGISTRO!X19/REGISTRO!P20)) -> 0.01495383385 | AC20: 3000 | AD20: 0.21 | AF20: 3000 | AG20: 0.21
N21: Unidad del SI: | P21: kPa | T21: REGISTRADOR DE PRESIÓN DIFERENCIAL | AC21: 10000 | AD21: 1.4 | AF21: 10000 | AG21: 1.4
B22: TOMA DE DATOS | N22: Conversión: | O22: =1&" "&'OPERACIONES PREVIAS'!D9&" "&" = " -> 1 psi = | P22: =VLOOKUP('OPERACIONES PREVIAS'!D9,CONVERSION,IF(Q22="kPa",3,IF(Q22="MPa",4)),0) -> 6.89476 | Q22: =$P$21 -> kPa | T22: MODULO DE PRESIÓN ESTATICA | AC22: 36000 | AD22: 8.9 | AF22: 36000 | AG22: 8.9
B23: Hora inicio | D23: 08:30: AM | E23: hh:mm | N23: Número de lecturas: | P23: =IF('OPERACIONES PREVIAS'!K8>=0.25,4,6) -> 4 | T23: MODULO DE PRESIÓN DIFERENCIAL
B25: Sentido de la Calibración | C25: 1ra Serie de Medición | N25: Lectura del Patrón | P25: U Patrón k=2 | Q25: U Patrón k=2 | R25: Deriva del Patrón | S25: Deriva del Patrón | U25: =VLOOKUP(D10,X26:Z35,2,0) -> COEFICIENTES_3000 | X25: Patrón | Y25: Coeficientes | Z25: Datos de cal
C26: Presión Nominal | E26: Lectura Patrón | G26: Error por Ecuación | I26: Lectura Patrón Corregida | J26: Lectura IBC | K26: Corrección de Medida | U26: Coeficientes de Ajuste | X26: 15 | Y26: COEFICIENTES_15 | Z26: DATOS_15
U27: a0 (intercepto) | V27: =INDIRECT(U25) -> 0.2249 | X27: 50 | Y27: COEFICIENTES_50 | Z27: DATOS_50
C28: % F.S | D28: ='OPERACIONES PREVIAS'!$D$9 -> psi | E28: ='OPERACIONES PREVIAS'!$D$9 -> psi | F28: =IF(D10="-30","inHg","psi") -> psi | G28: =F28 -> psi | H28: =E28 -> psi | I28: ='OPERACIONES PREVIAS'!$D$9 -> psi | J28: ='OPERACIONES PREVIAS'!$D$9 -> psi | K28: ='OPERACIONES PREVIAS'!$D$9 -> psi | N28: =$P$18 -> psi | O28: =$P$19 -> psi | P28: =R6 -> psi | Q28: =N28 -> psi | R28: =P28 -> psi | S28: =Q28 -> psi | U28: a1 | V28: 0.9986 | X28: 300 | Y28: COEFICIENTES_300 | Z28: DATOS_300
B29: Ascenso ▲ | C29: =IF('OPERACIONES PREVIAS'!K9="NO",0%,10%) -> 0 | D29: =C29*'OPERACIONES PREVIAS'!$L$5 -> 0 | E29: 0 | F29: =E29*$P$20 -> 0 | G29: =F29-(a_0+(a_1*F29)+(a_2*F29^2)+(a_3*F29^3)+(a_4*F29^4)+(a_5*F29^5)) -> -0.2249 | H29: =G29/$P$20 -> -0.2249 | I29: =E29-H29 -> 0.2249 | J29: 0 | K29: =I29-J29 -> 0.2249 | N29: =C138 -> 0.2249 | O29: =N29*$P$20 -> 0.2249 | P29: =IF(ABS(O29)<=ABS($N$7),$Q$7,IF(ABS(O29)<=ABS($N$8),$Q$8,IF(ABS(O29)<=ABS($N$9),$Q$9,IF(ABS(O29)<=ABS($N$10),$Q$10,IF(ABS(O29)<=ABS($N$11),$Q$11,IF(ABS(O29)<=ABS($N$12),$Q$12,IF(ABS(O29)<=ABS($N$13),$Q$13,IF(ABS(O29)<=ABS($N$14),$Q$14,IF(ABS(O29)<=ABS($N$15),$Q$15,IF(ABS(O29)<=ABS($N$16),$Q$16,$Q$16)))))))))) -> 0.084 | Q29: =P29/$P$20 -> 0.084 | R29: =IF(ABS(O29)<=ABS($N$7),$R$7,IF(ABS(O29)<=ABS($N$8),$R$8,IF(ABS(O29)<=ABS($N$9),$R$9,IF(ABS(O29)<=ABS($N$10),$R$10,IF(ABS(O29)<=ABS($N$11),$R$11,IF(ABS(O29)<=ABS($N$12),$R$12,IF(ABS(O29)<=ABS($N$13),$R$13,IF(ABS(O29)<=ABS($N$14),$R$14,IF(ABS(O29)<=ABS($N$15),$R$15,IF(ABS(O29)<=ABS($N$16),$R$16,$R$16)))))))))) -> 0.03 | S29: =R29/$P$20 -> 0.03 | U29: a2 | V29: 1.884e-06 | X29: 1000 | Y29: COEFICIENTES_1000 | Z29: DATOS_1000
C30: 0.2 | D30: =C30*'OPERACIONES PREVIAS'!$L$5 -> 300 | E30: 302.4 | F30: 302.4 | G30: 0.05687258903 | H30: 0.05687258903 | I30: 302.3431274 | J30: 300 | K30: 2.343127411 | N30: 301.8933778 | O30: 301.8933778 | P30: =IF(ABS(O30)<=ABS($N$7),$Q$7,IF(ABS(O30)<=ABS($N$8),$Q$8,IF(ABS(O30)<=ABS($N$9),$Q$9,IF(ABS(O30)<=ABS($N$10),$Q$10,IF(ABS(O30)<=ABS($N$11),$Q$11,IF(ABS(O30)<=ABS($N$12),$Q$12,IF(ABS(O30)<=ABS($N$13),$Q$13,IF(ABS(O30)<=ABS($N$14),$Q$14,IF(ABS(O30)<=ABS($N$15),$Q$15,IF(ABS(O30)<=ABS($N$16),$Q$16,$Q$16)))))))))) -> 0.086 | Q30: =P30/$P$20 -> 0.086 | R30: 0.11 | S30: =R30/$P$20 -> 0.11 | U30: a3 | V30: -1.219e-09 | X30: 3000 | Y30: COEFICIENTES_3000 | Z30: DATOS_3000 | AD30: CONDICIONES AMBIENTALES
C31: 0.4 | D31: =C31*'OPERACIONES PREVIAS'!$L$5 -> 600 | E31: 600.7 | F31: 600.7 | G31: 0.1552684665 | H31: 0.1552684665 | I31: 600.5447315 | J31: 600 | K31: 0.5447315335 | N31: 599.2449418 | O31: 599.2449418 | P31: 0.09 | Q31: =P31/$P$20 -> 0.09 | R31: 0.13 | S31: =R31/$P$20 -> 0.13 | U31: a4 | V31: 3.735e-13 | X31: 5000 | Y31: COEFICIENTES_5000 | Z31: DATOS_5000 | AD31: Magnitud | AF31: Valor | AG31: U | AH31: Unidad
C32: 0.6 | D32: =C32*'OPERACIONES PREVIAS'!$L$5 -> 900 | E32: 899.3 | F32: 899.3 | G32: 0.1784384959 | H32: 0.1784384959 | I32: 899.1215615 | J32: 900 | K32: -0.8784384959 | N32: 895.1466651 | O32: 895.1466651 | P32: 0.09 | Q32: =P32/$P$20 -> 0.09 | R32: 0.13 | S32: 0.13 | U32: a5 | V32: -4.369e-17 | X32: 10000 | Y32: COEFICIENTES_10000 | Z32: DATOS_10000 | AD32: Presión atmosférica | AF32: 700 | AG32: 1.9 | AH32: hPa
C33: 0.8 | D33: =C33*'OPERACIONES PREVIAS'!$L$5 -> 1200 | E33: 1203 | F33: 1203 | G33: 0.182844871 | H33: 0.182844871 | I33: 1202.817155 | J33: 1200 | K33: 2.817155129 | N33: 1200.992184 | O33: 1200.992184 | P33: 0.101 | Q33: 0.101 | R33: 0.18 | S33: 0.18 | X33: 36000 | Y33: COEFICIENTES_36000 | Z33: DATOS_36000 | AD33: Temperatura máxima | AF33: 21.1 | AG33: 0.49 | AH33: °C
C34: 1 | D34: =C34*'OPERACIONES PREVIAS'!$L$5 -> 1500 | E34: 1486.1 | F34: 1486.1 | G34: 0.1906041651 | H34: 0.1906041651 | I34: 1485.909396 | J34: 1500 | K34: -14.09060417 | N34: 1492.534135 | O34: 1492.534135 | P34: 0.109 | Q34: 0.109 | R34: 0.38 | S34: 0.38 | X34: -15 | Y34: COEFICIENTES_Fluke_Menos_15 | Z34: DATOS_Fluke_Menos_15 | AD34: Temperatura mínima | AF34: 20.2 | AG34: 0.49 | AH34: °C
B35: Descenso ▼ | C35: =C34 -> 1 | D35: =D34 -> 1500 | E35: 1499.2 | F35: 1499.2 | G35: 0.1911202866 | H35: 0.1911202866 | I35: 1499.00888 | J35: 1500 | K35: -0.9911202866 | X35: -30 | Y35: COEFICIENTES_Ametek_Menos_30inHg | Z35: DATOS_Ametek_Menos_30inHg | AD35: Humedad relativa | AF35: 48 | AG35: 9.9 | AH35: %HR
C36: =C33 -> 0.8 | D36: =D33 -> 1200 | E36: 1199.2 | F36: 1199.2 | G36: 0.1827844607 | H36: 0.1827844607 | I36: 1199.017216 | J36: 1200 | K36: -0.9827844607
C37: =C32 -> 0.6 | D37: =D32 -> 900 | E37: 890.7 | F37: 890.7 | G37: 0.178214168 | H37: 0.178214168 | I37: 890.5217858 | J37: 900 | K37: -9.478214168 | AD37: Variación en temperatura | AF37: =MAX(AF33:AF34)-MIN(AF33:AF34) -> 0.9 | AH37: °C
C38: =C31 -> 0.4 | D38: =D31 -> 600 | E38: 597.9 | F38: 597.9 | G38: 0.1548151693 | H38: 0.1548151693 | I38: 597.7451848 | J38: 600 | K38: -2.254815169
C39: =C30 -> 0.2 | D39: =D30 -> 300 | E39: 302.5 | F39: 302.5 | G39: 0.056928128 | H39: 0.056928128 | I39: 302.4430719 | J39: 300 | K39: 2.443071872
C40: =C29 -> 0 | D40: =D29 -> 0 | E40: 0 | F40: 0 | G40: -0.2249 | H40: -0.2249 | I40: 0.2249 | J40: 0 | K40: 0.2249
B42: Ascenso ▲ | C42: =C29 -> 0 | D42: =D29 -> 0 | E42: 0 | F42: =E42*$P$20 -> 0 | G42: =F42-(a_0+(a_1*F42)+(a_2*F42^2)+(a_3*F42^3)+(a_4*F42^4)+(a_5*F42^5)) -> -0.2249 | H42: =G42/$P$20 -> -0.2249 | I42: =E42-H42 -> 0.2249 | J42: 0 | K42: =I42-J42 -> 0.2249
C43: 0.2 | D43: 300 | E43: 301.4 | F43: 301.4 | G43: 0.05631613043 | H43: 0.05631613043 | I43: 301.3436839 | J43: 300 | K43: 1.34368387
C44: 0.4 | D44: 600 | E44: 600.5 | F44: 600.5 | G44: 0.1552362975 | H44: 0.1552362975 | I44: 600.3447637 | J44: 600 | K44: 0.3447637025 | X44: Curva de calibración
C45: 0.6 | D45: 900 | E45: 899.8 | F45: 899.8 | G45: 0.1784511207 | H45: 0.1784511207 | I45: 899.6215489 | J45: 900 | K45: -0.3784511207 | X45: Título | Y45: Curvas de calibración
C46: 0.8 | D46: 1200 | E46: 1203 | F46: 1203 | G46: 0.182844871 | H46: 0.182844871 | I46: 1202.817155 | J46: 1200 | K46: 2.817155129 | X46: Título eje x | Y46: ="Corrección de la medición en "&"("&'OPERACIONES PREVIAS'!D9&")" -> Corrección de la medición en (psi)
C47: 1 | D47: 1500 | E47: 1486.1 | F47: 1486.1 | G47: 0.1906041651 | H47: 0.1906041651 | I47: 1485.909396 | J47: 1500 | K47: -14.09060417 | X47: Título eje y | Y47: ="Lectura en "&"("&'OPERACIONES PREVIAS'!D9&")" -> Lectura en (psi)
B48: Descenso ▼ | C48: 1 | D48: 1500 | E48: 1499.5 | F48: 1499.5 | G48: 0.1911322444 | H48: 0.1911322444 | I48: 1499.308868 | J48: 1500 | K48: -0.6911322444
C49: 0.8 | D49: 1200 | E49: 1199.5 | F49: 1199.5 | G49: 0.1827891959 | H49: 0.1827891959 | I49: 1199.317211 | J49: 1200 | K49: -0.6827891959
C50: 0.6 | D50: 900 | E50: 891.5 | F50: 891.5 | G50: 0.1782356202 | H50: 0.1782356202 | I50: 891.3217644 | J50: 900 | K50: -8.67823562
C51: 0.4 | D51: 600 | E51: 598.5 | F51: 598.5 | G51: 0.1549128372 | H51: 0.1549128372 | I51: 598.3450872 | J51: 600 | K51: -1.654912837 | X51: Valor Nominal | Y51: Ascenso 1 | Z51: Descenso 1 | AA51: Ascenso 2 | AB51: Descenso 2 | AC51: Ascenso 3 | AD51: Descenso 3 | AE51: EMP (+) | AF51: EPM (-)
C52: 0.2 | D52: 300 | E52: 301.5 | F52: 301.5 | G52: 0.05637186381 | H52: 0.05637186381 | I52: 301.4436281 | J52: 300 | K52: 1.443628136 | X52: =IF('OPERACIONES PREVIAS'!K9="SI","",D29) -> 0 | Y52: =IF('OPERACIONES PREVIAS'!K9="SI","",K29) -> 0.2249 | Z52: =IF('OPERACIONES PREVIAS'!K9="SI","",K40) -> 0.2249 | AA52: =IF('OPERACIONES PREVIAS'!K9="SI","",K42) -> 0.2249 | AB52: =IF('OPERACIONES PREVIAS'!K9="SI","",K53) -> 0.2249 | AC52: =IF('OPERACIONES PREVIAS'!K9="SI","",K55) -> 0.2249 | AD52: =IF('OPERACIONES PREVIAS'!K9="SI","",K66) -> 0.2249 | AE52: =Y134 -> 24 | AF52: =Z134 -> -24
C53: 0 | D53: =D40 -> 0 | E53: 0 | F53: 0 | G53: -0.2249 | H53: -0.2249 | I53: 0.2249 | J53: 0 | K53: 0.2249 | N53: =REGISTRO!AF37:AG37&" " ->  | X53: =D30 -> 300 | Y53: =K30 -> 2.343127411 | Z53: =K39 -> 2.443071872 | AA53: =K43 -> 1.34368387 | AB53: =K52 -> 1.443628136 | AC53: =K56 -> 0.2249 | AD53: =K65 -> 0.2249 | AE53: 24 | AF53: -24
C54: 3ra Serie de Medición (Para Manómetros < 0,25%) | X54: =D31 -> 600 | Y54: =K31 -> 0.5447315335 | Z54: =K38 -> -2.254815169 | AA54: =K44 -> 0.3447637025 | AB54: =K51 -> -1.654912837 | AC54: =K57 -> 0.2249 | AD54: =K64 -> 0.2249 | AE54: 24 | AF54: -24
B55: Ascenso ▲ | C55: =C42 -> 0 | D55: 0 | F55: =E55*$P$20 -> 0 | G55: =F55-(a_0+(a_1*F55)+(a_2*F55^2)+(a_3*F55^3)+(a_4*F55^4)+(a_5*F55^5)) -> -0.2249 | H55: =G55/$P$20 -> -0.2249 | I55: =E55-H55 -> 0.2249 | K55: =I55-J55 -> 0.2249 | X55: =D32 -> 900 | Y55: =K32 -> -0.8784384959 | Z55: =K37 -> -9.478214168 | AA55: =K45 -> -0.3784511207 | AB55: =K50 -> -8.67823562 | AC55: =K58 -> 0.2249 | AD55: =K63 -> 0.2249 | AE55: 24 | AF55: -24
C56: 0.2 | D56: 300 | F56: 0 | G56: -0.2249 | H56: -0.2249 | I56: 0.2249 | K56: 0.2249 | X56: =D33 -> 1200 | Y56: =K33 -> 2.817155129 | Z56: =K36 -> -0.9827844607 | AA56: =K46 -> 2.817155129 | AB56: =K49 -> -0.6827891959 | AC56: =K59 -> 0.2249 | AD56: =K62 -> 0.2249 | AE56: 24 | AF56: -24
C57: 0.4 | D57: 600 | F57: 0 | G57: -0.2249 | H57: -0.2249 | I57: 0.2249 | K57: 0.2249 | X57: =D34 -> 1500 | Y57: =K34 -> -14.09060417 | Z57: =K35 -> -0.9911202866 | AA57: =K47 -> -14.09060417 | AB57: =K48 -> -0.6911322444 | AC57: =K60 -> 0.2249 | AD57: =K55 -> 0.2249 | AE57: 24 | AF57: -24
C58: 0.6 | D58: 900 | F58: 0 | G58: -0.2249 | H58: -0.2249 | I58: 0.2249 | K58: 0.2249
C59: 0.8 | D59: 1200 | F59: 0 | G59: -0.2249 | H59: -0.2249 | I59: 0.2249 | K59: 0.2249 | X59: Diagrama de calibración
C60: 1 | D60: 1500 | F60: 0 | G60: -0.2249 | H60: -0.2249 | I60: 0.2249 | K60: 0.2249 | X60: Titulo | Y60: Diagrama de calibración
B61: Descenso ▼ | C61: 1 | D61: 1500 | F61: 0 | G61: -0.2249 | H61: -0.2249 | I61: 0.2249 | K61: 0.2249 | X61: Titulo eje x | Y61: ="Corrección ± Incertidumbre "&"("&'OPERACIONES PREVIAS'!D9&")" -> Corrección ± Incertidumbre (psi)
C62: 0.8 | D62: 1200 | F62: 0 | G62: -0.2249 | H62: -0.2249 | I62: 0.2249 | K62: 0.2249 | X62: Titulo eje y | Y62: ="Valor Nominal "&"("&'OPERACIONES PREVIAS'!$D$9&")" -> Valor Nominal (psi)
C63: 0.6 | D63: 900 | F63: 0 | G63: -0.2249 | H63: -0.2249 | I63: 0.2249 | K63: 0.2249 | X63: Valor eje x | Y63: =IF('OPERACIONES PREVIAS'!K9="NO","C100:C105",IF('OPERACIONES PREVIAS'!K9="SI","C101:C105",)) -> C100:C105
C64: 0.4 | D64: 600 | F64: 0 | G64: -0.2249 | H64: -0.2249 | I64: 0.2249 | K64: 0.2249 | X64: Valor eje y | Y64: =IF('OPERACIONES PREVIAS'!K9="NO","E100:E105",IF('OPERACIONES PREVIAS'!K9="SI","E101:E105",)) -> E100:E105
C65: 0.2 | D65: 300 | F65: 0 | G65: -0.2249 | H65: -0.2249 | I65: 0.2249 | K65: 0.2249
C66: 0 | D66: 0 | F66: 0 | G66: -0.2249 | H66: -0.2249 | I66: 0.2249 | K66: 0.2249 | X66: Valor Nominal | Y66: Corrección Final | Z66: U
X67: 0 | Y67: =Y68 -> 0.3172250253 | Z67: =Z68 -> 7.116033112
B68: Hora final | C68: 09:30: PM | D68: hh:mm | E68: Temp Min | F68: 18.7 | G68: % HR Min | H68: 63.1 | I68: Pres atm Min | J68: 751.2 | K68: hPa | X68: =IF('OPERACIONES PREVIAS'!K9="SI","",D29) -> 0 | Y68: =IF('OPERACIONES PREVIAS'!K9="SI","",E138) -> 0.3172250253 | Z68: =IF('OPERACIONES PREVIAS'!K9="SI","",VALUE(F138)) -> 7.116033112
E69: Temp Máx | F69: 18.9 | G69: %HR Máx | H69: 63.5 | I69: Pres atm Máx | J69: 752.2 | K69: hPa | X69: =D30 -> 300 | Y69: =E139 -> 1.985702847 | Z69: =VALUE(F139) -> 7.161231583
X70: =D31 -> 600 | Y70: =E140 -> -0.6627331673 | Z70: =VALUE(F140) -> 7.290458163
B71: Correcciones | J71: Variación | X71: =D32 -> 900 | Y71: =E141 -> -4.761009826 | Z71: =VALUE(F141) -> 8.623972997
B72: Temp Mín | C72: 21.6 | D72: % HR Mín | E72: 61.5 | F72: Pres atm Min | G72: 749.2 | I72: Temperatura | J72: =C73-C72 -> 0.2 | K72: °C | X72: =D33 -> 1200 | Y72: =E142 -> 1.084509176 | Z72: =VALUE(F142) -> 7.431516633
B73: Temp Máx | C73: 21.8 | D73: %HR Máx | E73: 61.8 | F73: Pres atm Máx | G73: 749.5 | I73: Humedad | J73: =E73-E72 -> 0.3 | K73: % HR | X73: =D34 -> 1500 | Y73: =E143 -> -7.37354019 | Z73: =VALUE(F143) -> 10.40245861
I74: Pres atm. | J74: =G73-G72 -> 0.3 | K74: =K68 -> hPa | X74: Diagrama de Incertidumbres
B76: GRAFICA CONDICIONES AMBIENTALES (Opcional) | X76: Titulo eje x | Y76: ="Incertidumbre "&"("&'OPERACIONES PREVIAS'!D9&")" -> Incertidumbre (psi)
X77: Titulo eje y | Y77: ="Valor Nominal "&"("&'OPERACIONES PREVIAS'!D9&")" -> Valor Nominal (psi)
X78: Valor eje x | Y78: =IF(C29="NO","C100:C105",IF(C29="SI","C101:C105",)) -> 0
X79: Valor eje y | Y79: =IF(C29="NO","E100:E105",IF(C29="SI","E101:E105",)) -> 0
C101: ESTIMACIÓN DE LA INCERTIDUMBRE POR CORRECCIÓN DE ALTURAS
C102: Magnitud | E102: Incertidumbre típica | F102: Coeficiente de sensibilidad | H102: u Estándar | I102: u Estándar | J102: u Estándar
H103: Pa | I103: Pa | J103: ='OPERACIONES PREVIAS'!$D$9 -> psi
C104: Diferencia de alturas (h): | E104: =J9/2 -> 1.577769945e-05 | F104: (ρf-ρa)*gl | G104: =(I10-I11)*I12 -> 7956.74152 | H104: =G104*E104 -> 0.1255390763 | I104: =SQRT(SUMSQ(H104:H107)) -> 18.46792157 | J104: =I104/VLOOKUP(J103,CONVERSION,MATCH(I103,'TABLA DE CONVERSIÓN'!$B$2:$M$2,0)+1,0) -> 0.002678544514
C105: Densidad del fluido (ρf): | E105: =J10/SQRT(12) -> 23.46351494 | F105: gl * h | G105: =I12*I9 -> 0.7840241033 | H105: =G105*E105 -> 18.39596126
C106: Densidad del aire (ρa): | E106: =J11/SQRT(12) -> 0.003464101615 | F106: -gl * h | G106: =-I12*I9 -> -0.7840241033 | H106: =G106*E106 -> -0.002715939163
C107: Aceleración gravedad (gl): | E107: =J12/2 -> 0.025 | F107: (ρf-ρa)*h | G107: =(I10-I11)*I9 -> 64.95498891 | H107: =G107*E107 -> 1.623874723
B109: ESTIMACIÓN DE INCERTIDUMBRES ESTÁNDAR
B110: Presión Nominal | C110: u Repetibilidad | D110: u Resolución | E110: u Histéresis | F110: u Temp IBC *cs | G110: u Nivel de referencia | H110: u Cal Patrón | I110: u Deriva Patrón | J110: u Temp Patrón*cs | K110: u Combinada
C112: u(σ) | D112: u(δRes) | E112: u(δHis) | F112: u(δTem) | G112: u(ΔNR) | H112: u(δCal) | I112: u(δDer) | J112: u(δTem) | K112: uc
B113: MPa | C113: ='OPERACIONES PREVIAS'!$D$9 -> psi | D113: ='OPERACIONES PREVIAS'!$D$9 -> psi | E113: ='OPERACIONES PREVIAS'!$D$9 -> psi | F113: ='OPERACIONES PREVIAS'!$D$9 -> psi | G113: ='OPERACIONES PREVIAS'!$D$9 -> psi | H113: ='OPERACIONES PREVIAS'!$D$9 -> psi | I113: ='OPERACIONES PREVIAS'!$D$9 -> psi | J113: ='OPERACIONES PREVIAS'!$D$9 -> psi | K113: ='OPERACIONES PREVIAS'!$D$9 -> psi
B114: =$D$29 -> 0 | C114: =O134/SQRT($P$23-1) -> 0 | D114: =T134/SQRT(12) -> 3.608439182 | E114: =P134/SQRT(12) -> 0 | F114: =X134/SQRT(12) -> 0 | G114: =$J$104 -> 0.002678544514 | H114: =U134/2 -> 0.042 | I114: =V134/SQRT(12) -> 0.008660254038 | J114: =W134/SQRT(12) -> 0 | K114: =SQRT(SUMSQ(C114:J114,$X$20)) -> 3.60872597
B115: =$D$30 -> 300 | C115: =O135/SQRT($P$23-1) -> 0.4080211172 | D115: =T135/SQRT(12) -> 3.608439182 | E115: 0.02885148074 | F115: 0 | G115: 0.002678544514 | H115: 0.043 | I115: 0.03175426481 | J115: =J114 -> 0 | K115: =SQRT(SUMSQ(C115:J115,$X$20)) -> 3.631973995
B116: =$D$31 -> 600 | C116: =O136/SQRT($P$23-1) -> 0.08163652515 | D116: 3.608439182 | E116: 0.8081595213 | F116: 0 | G116: 0.002678544514 | H116: 0.045 | I116: 0.0375277675 | J116: =J115 -> 0 | K116: 3.699227459
B117: =$D$32 -> 900 | C117: 0.2041189912 | D117: 3.608439182 | E117: 2.4825414 | F117: 0 | G117: 0.002678544514 | H117: 0.045 | I117: 0.0375277675 | J117: =J116 -> 0 | K117: 4.385108188
B118: =$D$33 -> 1200 | C118: 0 | D118: 3.608439182 | E118: 1.096948073 | F118: 0 | G118: 0.002678544514 | H118: 0.0505 | I118: 0.05196152423 | J118: =J117 -> 0 | K118: 3.772215456
B119: =$D$34 -> 1500 | C119: 0 | D119: 3.608439182 | E119: 3.86809436 | F119: 0 | G119: 0.002678544514 | H119: 0.0545 | I119: 0.1096965511 | J119: =J118 -> 0 | K119: 5.291334585
D121: RESULTADOS DE LA MEDICIÓN
D122: Grados Efectivos de Libertad | E122: Factor de Cobertura | F122: U Expandida | G122: U Expandida | H122: U Expandida | I122: U Expandida
J123: Numero de decimales de U | K123: Numero de decimales de % U
F124: Uexp | G124: Uexp | H124: Uexp | I124: Uexp
D125: Veff | E125: k95% | F125: ='OPERACIONES PREVIAS'!$D$9 -> psi | G125: ='OPERACIONES PREVIAS'!$D$9 -> psi | H125: % | I125: %
D126: =K114^4/((C114^4/(P23-1))+(E114^4/200)+(D114^4/200)+(F114^4/200)+(G114^4/200)+(H114^4/200)+(I114^4/200)+(J114^4/200)) -> 200.0635854 | E126: =TINV(100%-95%,D126) -> 1.971896224 | F126: =K114*E126 -> 7.116033112 | G126: =IF(F126>10,FIXED(F126,0,0),IF(F126>9.5,FIXED(F126,0,0),IF(ROUND(F126,2)=1,FIXED(F126,1),IF(F126>=1,FIXED(F126,1,0),IF(MID(F126,3,1)<>"0",FIXED(F126,2,1),IF(MID(F126,4,1)<>"0",FIXED(F126,3,0),IF(MID(F126,5,1)<>"0",FIXED(F126,4,0),IF(MID(F126,6,1)<>"0",FIXED(F126,5,0),IF(MID(F126,7,1)<>"0",FIXED(F126,6,0)))))))))) -> 7,1160 | H126: =IF(D138=0,"----",(F126/D138)*100) -> ---- | I126: =IF(H126="----","----",IF(H126>10,FIXED(H126,0,0),IF(H126>9.5,FIXED(H126,0,0),IF(ROUND(H126,2)=1,FIXED(H126,1),IF(H126>=1,FIXED(H126,1,0),IF(MID(H126,3,1)<>"0",FIXED(H126,2,1),IF(MID(H126,4,1)<>"0",FIXED(H126,3,0),IF(MID(H126,5,1)<>"0",FIXED(H126,4,0),IF(MID(H126,6,1)<>"0",FIXED(H126,5,0),IF(MID(H126,7,1)<>"0",FIXED(H126,6,0))))))))))) -> ---- | J126: =LEN(G126)-2 -> 4 | K126: =LEN(I126)-2 -> 2
D127: =K115^4/((C115^4/(P23-1))+(E115^4/200)+(D115^4/200)+(F115^4/200)+(G115^4/200)+(H115^4/200)+(I115^4/200)+(J115^4/200)) -> 203.0560087 | E127: 1.971718848 | F127: =K115*E127 -> 7.161231583 | G127: =IF(F127>10,FIXED(F127,0,0),IF(F127>9.5,FIXED(F127,0,0),IF(ROUND(F127,2)=1,FIXED(F127,1),IF(F127>=1,FIXED(F127,1,0),IF(MID(F127,3,1)<>"0",FIXED(F127,2,1),IF(MID(F127,4,1)<>"0",FIXED(F127,3,0),IF(MID(F127,5,1)<>"0",FIXED(F127,4,0),IF(MID(F127,6,1)<>"0",FIXED(F127,5,0),IF(MID(F127,7,1)<>"0",FIXED(F127,6,0)))))))))) -> 7,1612 | H127: =(F127/D139)*100 -> 2.387077194 | I127: =IF(H127>10,FIXED(H127,0,0),IF(H127>9.5,FIXED(H127,0,0),IF(ROUND(H127,2)=1,FIXED(H127,1),IF(H127>=1,FIXED(H127,1,0),IF(MID(H127,3,1)<>"0",FIXED(H127,2,1),IF(MID(H127,4,1)<>"0",FIXED(H127,3,0),IF(MID(H127,5,1)<>"0",FIXED(H127,4,0),IF(MID(H127,6,1)<>"0",FIXED(H127,5,0),IF(MID(H127,7,1)<>"0",FIXED(H127,6,0)))))))))) -> 2,3871 | J127: 4 | K127: 4
D128: =K116^4/((C116^4/(P23-1))+(E116^4/200)+(D116^4/200)+(F116^4/200)+(G116^4/200)+(H116^4/200)+(I116^4/200)+(J116^4/200)) -> 220.3422023 | E128: 1.970805592 | F128: 7.290458163 | G128: 7,2905 | H128: =(F128/D140)*100 -> 1.215076361 | I128: =IF(H128>10,FIXED(H128,0,0),IF(H128>9.5,FIXED(H128,0,0),IF(ROUND(H128,2)=1,FIXED(H128,1),IF(H128>=1,FIXED(H128,1,0),IF(MID(H128,3,1)<>"0",FIXED(H128,2,1),IF(MID(H128,4,1)<>"0",FIXED(H128,3,0),IF(MID(H128,5,1)<>"0",FIXED(H128,4,0),IF(MID(H128,6,1)<>"0",FIXED(H128,5,0),IF(MID(H128,7,1)<>"0",FIXED(H128,6,0)))))))))) -> 1,2151 | J128: 4 | K128: 4
D129: =K117^4/((C117^4/(P23-1))+(E117^4/200)+(D117^4/200)+(F117^4/200)+(G117^4/200)+(H117^4/200)+(I117^4/200)+(J117^4/200)) -> 356.155024 | E129: 1.966649995 | F129: 8.623972997 | G129: 8,6240 | H129: =(F129/D141)*100 -> 0.9582192219 | I129: =IF(H129>10,FIXED(H129,0,0),IF(H129>9.5,FIXED(H129,0,0),IF(ROUND(H129,2)=1,FIXED(H129,1),IF(H129>=1,FIXED(H129,1,0),IF(MID(H129,3,1)<>"0",FIXED(H129,2,1),IF(MID(H129,4,1)<>"0",FIXED(H129,3,0),IF(MID(H129,5,1)<>"0",FIXED(H129,4,0),IF(MID(H129,6,1)<>"0",FIXED(H129,5,0),IF(MID(H129,7,1)<>"0",FIXED(H129,6,0)))))))))) -> 001 | J129: 4 | K129: 1 | O129: ESTIMACIONES
D130: =K118^4/((C118^4/(P23-1))+(E118^4/200)+(D118^4/200)+(F118^4/200)+(G118^4/200)+(H118^4/200)+(I118^4/200)+(J118^4/200)) -> 236.8346048 | E130: 1.970066853 | F130: 7.431516633 | G130: 7,4315 | H130: =(F130/D142)*100 -> 0.6192930528 | I130: =IF(H130>10,FIXED(H130,0,0),IF(H130>9.5,FIXED(H130,0,0),IF(ROUND(H130,2)=1,FIXED(H130,1),IF(H130>=1,FIXED(H130,1,0),IF(MID(H130,3,1)<>"0",FIXED(H130,2,1),IF(MID(H130,4,1)<>"0",FIXED(H130,3,0),IF(MID(H130,5,1)<>"0",FIXED(H130,4,0),IF(MID(H130,6,1)<>"0",FIXED(H130,5,0),IF(MID(H130,7,1)<>"0",FIXED(H130,6,0)))))))))) -> 001 | J130: 4 | K130: 1 | N130: Presión Nominal | O130: Desviación Estándar | P130: Histéresis | Q130: Histéresis 1ra Serie | R130: Histéresis 2da Serie | S130: Histéresis 3ra Serie | T130: Resolución | U130: U Patrón | V130: Deriva | W130: Temperatura Patrón | X130: Temperatura IBC | Y130: (+) Error Máximo Permitido | Z130: (-) Error Máximo Permitido | AA130: (+)Límite de aceptación | AB130: (-) Límite de aceptación
D131: =K119^4/((C119^4/(P23-1))+(E119^4/200)+(D119^4/200)+(F119^4/200)+(G119^4/200)+(H119^4/200)+(I119^4/200)+(J119^4/200)) -> 398.5174719 | E131: 1.965942324 | F131: 10.40245861 | G131: 10,402 | H131: =(F131/D143)*100 -> 0.6934972407 | I131: =IF(H131>10,FIXED(H131,0,0),IF(H131>9.5,FIXED(H131,0,0),IF(ROUND(H131,2)=1,FIXED(H131,1),IF(H131>=1,FIXED(H131,1,0),IF(MID(H131,3,1)<>"0",FIXED(H131,2,1),IF(MID(H131,4,1)<>"0",FIXED(H131,3,0),IF(MID(H131,5,1)<>"0",FIXED(H131,4,0),IF(MID(H131,6,1)<>"0",FIXED(H131,5,0),IF(MID(H131,7,1)<>"0",FIXED(H131,6,0)))))))))) -> 001 | J131: 4 | K131: 1
B133: Resultados de la Medición en Unidades del IBC | G133: Resultados de la Medición en Unidades del SI | N133: MPa | O133: ='OPERACIONES PREVIAS'!$D$9 -> psi | P133: ='OPERACIONES PREVIAS'!$D$9 -> psi | Q133: ='OPERACIONES PREVIAS'!$D$9 -> psi | R133: ='OPERACIONES PREVIAS'!$D$9 -> psi | S133: ='OPERACIONES PREVIAS'!$D$9 -> psi | T133: ='OPERACIONES PREVIAS'!$D$9 -> psi | U133: ='OPERACIONES PREVIAS'!$D$9 -> psi | V133: ='OPERACIONES PREVIAS'!$D$9 -> psi | W133: ='OPERACIONES PREVIAS'!$D$9 -> psi | X133: ='OPERACIONES PREVIAS'!$D$9 -> psi | Y133: ='OPERACIONES PREVIAS'!$D$9 -> psi | Z133: ='OPERACIONES PREVIAS'!$D$9 -> psi | AA133: ='OPERACIONES PREVIAS'!$D$9 -> psi | AB133: ='OPERACIONES PREVIAS'!$D$9 -> psi
B134: Presión Nominal | C134: Lectura Patrón | D134: Lectura IBC | E134: Corrección Final de Calibración | F134: U Expandida k=2 | G134: Presión Nominal | H134: Lectura Patrón | I134: Lectura IBC | J134: Corrección final de calibración | K134: U Expandida k=2 | N134: =$D$29 -> 0 | O134: =IF('OPERACIONES PREVIAS'!$K$8>=0.25,_xlfn.STDEV.S(K29,K42),_xlfn.STDEV.S(K29,K42,K55)) -> 0 | P134: =IF('OPERACIONES PREVIAS'!$K$8>=0.25,MAX(Q134:R134),MAX(Q134:S134)) -> 0 | Q134: =ABS(K29-K40) -> 0 | R134: =ABS(K42-K53) -> 0 | S134: =IF('OPERACIONES PREVIAS'!$K$8<0.25,ABS(K55-K66),"----") -> ---- | T134: ='OPERACIONES PREVIAS'!$K$7 -> 12.5 | U134: =Q29 -> 0.084 | V134: =S29 -> 0.03 | W134: =((D18*D10)/100)*J72 -> 0 | X134: =(('OPERACIONES PREVIAS'!F9*'OPERACIONES PREVIAS'!L5)/100)*J72 -> 0 | Y134: =IF('OPERACIONES PREVIAS'!$L$8="Del rango",('OPERACIONES PREVIAS'!$K$8/100)*'OPERACIONES PREVIAS'!$L$4,IF('OPERACIONES PREVIAS'!$L$8="De lectura",B114*('OPERACIONES PREVIAS'!$K$8/100))) -> 24 | Z134: =-Y134 -> -24 | AA134: =IF('OPERACIONES PREVIAS'!$D$16="SI",SQRT((Y134^2)-($F126)),REGISTRO!Y134) -> 24 | AB134: =IF('OPERACIONES PREVIAS'!$D$16="SI",-SQRT((Z134^2)-(G126)),Z134) -> -24
N135: =$D$30 -> 300 | O135: =IF('OPERACIONES PREVIAS'!$K$8>=0.25,_xlfn.STDEV.S(K30,K43),_xlfn.STDEV.S(K30,K43,K56)) -> 0.7067133055 | P135: =IF('OPERACIONES PREVIAS'!$K$8>=0.25,MAX(Q135:R135),MAX(Q135:S135)) -> 0.09994446103 | Q135: =ABS(K30-K39) -> 0.09994446103 | R135: =ABS(K43-K52) -> 0.09994426661 | S135: =IF('OPERACIONES PREVIAS'!$K$8<0.25,ABS(K56-K65),"----") -> ---- | T135: ='OPERACIONES PREVIAS'!$K$7 -> 12.5 | U135: 0.086 | V135: 0.11 | W135: =W134 -> 0 | X135: 0 | Y135: =IF('OPERACIONES PREVIAS'!$L$8="Del rango",('OPERACIONES PREVIAS'!$K$8/100)*'OPERACIONES PREVIAS'!$L$4,IF('OPERACIONES PREVIAS'!$L$8="De lectura",B115*('OPERACIONES PREVIAS'!$K$8/100))) -> 24 | Z135: -24 | AA135: =IF('OPERACIONES PREVIAS'!$D$16="SI",SQRT((Y135^2)-($F127)),REGISTRO!Y135) -> 24 | AB135: =IF('OPERACIONES PREVIAS'!$D$16="SI",-SQRT((Z135^2)-(G127)),Z135) -> -24
N136: =$D$31 -> 600 | O136: =IF('OPERACIONES PREVIAS'!$K$8>=0.25,_xlfn.STDEV.S(K31,K44),_xlfn.STDEV.S(K31,K44,K57)) -> 0.1413986093 | P136: =IF('OPERACIONES PREVIAS'!$K$8>=0.25,MAX(Q136:R136),MAX(Q136:S136)) -> 2.799546703 | Q136: =ABS(K31-K38) -> 2.799546703 | R136: =ABS(K44-K51) -> 1.99967654 | S136: =IF('OPERACIONES PREVIAS'!$K$8<0.25,ABS(K57-K64),"----") -> ---- | T136: ='OPERACIONES PREVIAS'!$K$7 -> 12.5 | U136: 0.09 | V136: 0.13 | W136: 0 | X136: 0 | Y136: =IF('OPERACIONES PREVIAS'!$L$8="Del rango",('OPERACIONES PREVIAS'!$K$8/100)*'OPERACIONES PREVIAS'!$L$4,IF('OPERACIONES PREVIAS'!$L$8="De lectura",B116*('OPERACIONES PREVIAS'!$K$8/100))) -> 24 | Z136: -24 | AA136: =IF('OPERACIONES PREVIAS'!$D$16="SI",SQRT((Y136^2)-($F128)),REGISTRO!Y136) -> 24 | AB136: =IF('OPERACIONES PREVIAS'!$D$16="SI",-SQRT((Z136^2)-(G128)),Z136) -> -24
B137: ='OPERACIONES PREVIAS'!$D$9 -> psi | C137: ='OPERACIONES PREVIAS'!$D$9 -> psi | D137: ='OPERACIONES PREVIAS'!$D$9 -> psi | E137: ='OPERACIONES PREVIAS'!$D$9 -> psi | F137: ='OPERACIONES PREVIAS'!$D$9 -> psi | G137: =$P$21 -> kPa | H137: =$P$21 -> kPa | I137: =$P$21 -> kPa | J137: =$P$21 -> kPa | K137: =$P$21 -> kPa | N137: =$D$32 -> 900 | O137: =IF('OPERACIONES PREVIAS'!$K$8>=0.25,_xlfn.STDEV.S(K32,K45),_xlfn.STDEV.S(K32,K45,K58)) -> 0.3535444635 | P137: =IF('OPERACIONES PREVIAS'!$K$8>=0.25,MAX(Q137:R137),MAX(Q137:S137)) -> 8.599775672 | Q137: =ABS(K32-K37) -> 8.599775672 | R137: =ABS(K45-K50) -> 8.2997845 | S137: =IF('OPERACIONES PREVIAS'!$K$8<0.25,ABS(K58-K63),"----") -> ---- | T137: ='OPERACIONES PREVIAS'!$K$7 -> 12.5 | U137: 0.09 | V137: 0.13 | W137: 0 | X137: 0 | Y137: =IF('OPERACIONES PREVIAS'!$L$8="Del rango",('OPERACIONES PREVIAS'!$K$8/100)*'OPERACIONES PREVIAS'!$L$4,IF('OPERACIONES PREVIAS'!$L$8="De lectura",B117*('OPERACIONES PREVIAS'!$K$8/100))) -> 24 | Z137: -24 | AA137: =IF('OPERACIONES PREVIAS'!$D$16="SI",SQRT((Y137^2)-($F129)),REGISTRO!Y137) -> 24 | AB137: =IF('OPERACIONES PREVIAS'!$D$16="SI",-SQRT((Z137^2)-(G129)),Z137) -> -24
B138: =$D$29 -> 0 | C138: =IF('OPERACIONES PREVIAS'!$K$8>=0.24,AVERAGE(I29,I40,I42,I53),AVERAGE(I29,I40,I42,I53,I55,I66)) -> 0.2249 | D138: =IF('OPERACIONES PREVIAS'!$K$8>=0.24,AVERAGE(J29,J40,J42,J53),AVERAGE(J29,J40,J42,J53,J55,J66)) -> 0 | E138: =C138-D138+($I$14) -> 0.3172250253 | F138: =F126 -> 7.116033112 | G138: =B138*F.C -> 0 | H138: =C138*F.C -> 1.550631524 | I138: 0 | J138: =E138*F.C -> 2.187190415 | K138: =IF((F138*F.C)>10,FIXED((F138*F.C),0,0),IF((F138*F.C)>9.5,FIXED((F138*F.C),0,0),IF(ROUND((F138*F.C),2)=1,FIXED((F138*F.C),1),IF((F138*F.C)>=1,FIXED((F138*F.C),1,0),IF(MID((F138*F.C),3,1)<>"0",FIXED((F138*F.C),2,1),IF(MID((F138*F.C),4,1)<>"0",FIXED((F138*F.C),3,0),IF(MID((F138*F.C),5,1)<>"0",FIXED((F138*F.C),4,0),IF(MID((F138*F.C),6,1)<>"0",FIXED((F138*F.C),5,0),IF(MID((F138*F.C),7,1)<>"0",FIXED((F138*F.C),6,0)))))))))) -> 49,063 | N138: =$D$33 -> 1200 | O138: =IF('OPERACIONES PREVIAS'!$K$8>=0.25,_xlfn.STDEV.S(K33,K46),_xlfn.STDEV.S(K33,K46,K59)) -> 0 | P138: =IF('OPERACIONES PREVIAS'!$K$8>=0.25,MAX(Q138:R138),MAX(Q138:S138)) -> 3.79993959 | Q138: =ABS(K33-K36) -> 3.79993959 | R138: =ABS(K46-K49) -> 3.499944325 | S138: =IF('OPERACIONES PREVIAS'!$K$8<0.25,ABS(K59-K62),"----") -> ---- | T138: ='OPERACIONES PREVIAS'!$K$7 -> 12.5 | U138: 0.101 | V138: 0.18 | W138: 0 | X138: 0 | Y138: =IF('OPERACIONES PREVIAS'!$L$8="Del rango",('OPERACIONES PREVIAS'!$K$8/100)*'OPERACIONES PREVIAS'!$L$4,IF('OPERACIONES PREVIAS'!$L$8="De lectura",B118*('OPERACIONES PREVIAS'!$K$8/100))) -> 24 | Z138: -24 | AA138: =IF('OPERACIONES PREVIAS'!$D$16="SI",SQRT((Y138^2)-($F130)),REGISTRO!Y138) -> 24 | AB138: =IF('OPERACIONES PREVIAS'!$D$16="SI",-SQRT((Z138^2)-(G130)),Z138) -> -24
B139: =$D$30 -> 300 | C139: =IF('OPERACIONES PREVIAS'!$K$8>=0.24,AVERAGE(I30,I39,I43,I52),AVERAGE(I30,I39,I43,I52,I56,I65)) -> 301.8933778 | D139: =IF('OPERACIONES PREVIAS'!$K$8>=0.24,AVERAGE(J30,J39,J43,J52),AVERAGE(J30,J39,J43,J52,J56,J65)) -> 300 | E139: =C139-D139+($I$14) -> 1.985702847 | F139: =F127 -> 7.161231583 | G139: 2068.428 | H139: 2081.482386 | I139: 2068.428 | J139: 13.69094456 | K139: 49,375 | N139: =$D$34 -> 1500 | O139: =IF('OPERACIONES PREVIAS'!$K$8>=0.25,_xlfn.STDEV.S(K34,K47),_xlfn.STDEV.S(K34,K47,K60)) -> 0 | P139: =IF('OPERACIONES PREVIAS'!$K$8>=0.25,MAX(Q139:R139),MAX(Q139:S139)) -> 13.39947192 | Q139: =ABS(K34-K35) -> 13.09948388 | R139: =ABS(K47-K48) -> 13.39947192 | S139: =IF('OPERACIONES PREVIAS'!$K$8<0.25,ABS(K60-K61),"----") -> ---- | T139: ='OPERACIONES PREVIAS'!$K$7 -> 12.5 | U139: 0.109 | V139: 0.38 | W139: 0 | X139: 0 | Y139: =IF('OPERACIONES PREVIAS'!$L$8="Del rango",('OPERACIONES PREVIAS'!$K$8/100)*'OPERACIONES PREVIAS'!$L$4,IF('OPERACIONES PREVIAS'!$L$8="De lectura",B119*('OPERACIONES PREVIAS'!$K$8/100))) -> 24 | Z139: -24 | AA139: =IF('OPERACIONES PREVIAS'!$D$16="SI",SQRT((Y139^2)-($F131)),REGISTRO!Y139) -> 24 | AB139: =IF('OPERACIONES PREVIAS'!$D$16="SI",-SQRT((Z139^2)-(G131)),Z139) -> -24
B140: =$D$31 -> 600 | C140: =IF('OPERACIONES PREVIAS'!$K$8>=0.24,AVERAGE(I31,I38,I44,I51),AVERAGE(I31,I38,I44,I51,I57,I64)) -> 599.2449418 | D140: =IF('OPERACIONES PREVIAS'!$K$8>=0.24,AVERAGE(J31,J38,J44,J51),AVERAGE(J31,J38,J44,J51,J57,J64)) -> 600 | E140: -0.6627331673 | F140: 7.290458163 | G140: 4136.856 | H140: 4131.650055 | I140: 4136.856 | J140: -4.569386133 | K140: 50,266
A141: 11 | B141: =$D$32 -> 900 | C141: =IF('OPERACIONES PREVIAS'!$K$8>=0.24,AVERAGE(I32,I37,I45,I50),AVERAGE(I32,I37,I45,I50,I58,I63)) -> 895.1466651 | D141: =IF('OPERACIONES PREVIAS'!$K$8>=0.24,AVERAGE(J32,J37,J45,J50),AVERAGE(J32,J37,J45,J50,J58,J63)) -> 900 | E141: -4.761009826 | F141: 8.623972997 | G141: 6205.284 | H141: 6171.821421 | I141: 6205.284 | J141: -32.82602011 | K141: 59,460 | M141: Número de decimales de U | N141: Evaluación del teorema del límite central
B142: =$D$33 -> 1200 | C142: =IF('OPERACIONES PREVIAS'!$K$8>=0.24,AVERAGE(I33,I36,I46,I49),AVERAGE(I33,I36,I46,I49,I59,I62)) -> 1200.992184 | D142: =IF('OPERACIONES PREVIAS'!$K$8>=0.24,AVERAGE(J33,J36,J46,J49),AVERAGE(J33,J36,J46,J49,J59,J62)) -> 1200 | E142: 1.084509176 | F142: 7.431516633 | G142: 8273.712 | H142: 8280.552872 | I142: 8273.712 | J142: 7.477430484 | K142: 51,239 | N142: Normal | O142: Rectangular | P142: Rectangular | Q142: Rectangular | R142: Normal | S142: Normal | T142: Rectangular | U142: Rectangular
B143: =$D$34 -> 1500 | C143: =IF('OPERACIONES PREVIAS'!$K$8>=0.24,AVERAGE(I34,I35,I47,I48),AVERAGE(I34,I35,I47,I48,I60,I61)) -> 1492.534135 | D143: =IF('OPERACIONES PREVIAS'!$K$8>=0.24,AVERAGE(J34,J35,J47,J48),AVERAGE(J34,J35,J47,J48,J60,J61)) -> 1500 | E143: -7.37354019 | F143: 10.40245861 | G143: 10342.14 | H143: 10290.66465 | I143: =D143*F.C -> 10342.14 | J143: -50.83878996 | K143: 71,722 | N143: u Repetibilidad | O143: u Histéresis | P143: u Resolución | Q143: u Temp IBC | R143: u Nivel de referencia | S143: u Cal Patrón | T143: u Deriva Patrón | U143: u Temp Patrón
M145: =LEN(K138)-2 -> 4 | N145: u(σ) | O145: u(δHis) | P145: u(δRes) | Q145: u(δTem) | R145: u(ΔNR) | S145: u(δCal) | T145: u(δDer) | U145: u(δTem) | V145: u Máxima | X145: Tipo de distribución | Y145: Evaluador | Z145: Es
M146: 4 | N146: ='OPERACIONES PREVIAS'!$D$9 -> psi | O146: ='OPERACIONES PREVIAS'!$D$9 -> psi | P146: ='OPERACIONES PREVIAS'!$D$9 -> psi | Q146: ='OPERACIONES PREVIAS'!$D$9 -> psi | R146: ='OPERACIONES PREVIAS'!$D$9 -> psi | S146: ='OPERACIONES PREVIAS'!$D$9 -> psi | T146: ='OPERACIONES PREVIAS'!$D$9 -> psi | U146: ='OPERACIONES PREVIAS'!$D$9 -> psi | Z146: Dominante
M147: 4 | N147: =C114 -> 0 | O147: =E114 -> 0 | P147: =D114 -> 3.608439182 | Q147: =F114 -> 0 | R147: 0.002678544514 | S147: 0.042 | T147: 0.008660254038 | U147: 0 | V147: =MAX(N147:U147) -> 3.608439182 | W147: =INDEX($N$145:$U$147,1,MATCH(V147,N147:U147,0)) -> u(δRes) | X147: =INDEX($N$142:$U$147,1,MATCH(V147,N147:U147,0)) -> Rectangular | Y147: =SQRT(SUMSQ(N147:U147)-V147^2)/V147 -> 0.01190740145 | Z147: =IF(Y147<=0.3,"Si","No") -> Si
M148: 4 | N148: 0.4080211172 | O148: 0.02885148074 | P148: 3.608439182 | Q148: 0 | R148: 0.002678544514 | S148: 0.043 | T148: 0.03175426481 | U148: 0 | V148: 3.608439182 | W148: u(δRes) | X148: Rectangular | Y148: 0.1143227089 | Z148: Si
M149: 4 | N149: 0.08163652515 | O149: 0.8081595213 | P149: 3.608439182 | Q149: 0 | R149: 0.002678544514 | S149: 0.045 | T149: 0.0375277675 | U149: 0 | V149: 3.608439182 | W149: u(δRes) | X149: Rectangular | Y149: 0.2256896574 | Z149: Si
M150: 4 | N150: 0.2041189912 | O150: 2.4825414 | P150: 3.608439182 | Q150: 0 | R150: 0.002678544514 | S150: 0.045 | T150: 0.0375277675 | U150: 0 | V150: 3.608439182 | W150: u(δRes) | X150: Rectangular | Y150: 0.6904950222 | Z150: No
N151: 0 | O151: 1.096948073 | P151: 3.608439182 | Q151: 0 | R151: 0.002678544514 | S151: 0.0505 | T151: 0.05196152423 | U151: 0 | V151: 3.608439182 | W151: u(δRes) | X151: Rectangular | Y151: 0.3046585497 | Z151: No
N152: 0 | O152: 3.86809436 | P152: 3.608439182 | Q152: 0 | R152: 0.002678544514 | S152: 0.0545 | T152: 0.1096965511 | U152: 0 | V152: 3.86809436 | W152: u(δHis) | X152: Rectangular | Y152: 0.9334101495 | Z152: No
C161: Calibró | D161: MICHAEL VALERO | G161: Cargo | H161: =VLOOKUP(D161,F169:H172,2,0) -> ESPECIALISTA TÉCNICO
F169: MICHAEL VALERO | G169: ESPECIALISTA TÉCNICO
G170: ESPECIALISTA TÉCNICO
G171: ESPECIALISTA TÉCNICO

Sheet CERTIFICADO
A8: CERTIFICADO DE CALIBRACIÓN | I8: =$A$8 -> CERTIFICADO DE CALIBRACIÓN | S8: =$A$8 -> CERTIFICADO DE CALIBRACIÓN | AC8: =$A$8 -> CERTIFICADO DE CALIBRACIÓN
A9: CERTIFICATE OF CALIBRATION | I9: =$A$9 -> CERTIFICATE OF CALIBRATION | S9: =$A$9 -> CERTIFICATE OF CALIBRATION | AC9: =$A$9 -> CERTIFICATE OF CALIBRATION
A10: DID-159 / VERSIÓN: 08 / REVISIÓN: 2020-06-05 | I10: =A10 -> DID-159 / VERSIÓN: 08 / REVISIÓN: 2020-06-05 | S10: =A10 -> DID-159 / VERSIÓN: 08 / REVISIÓN: 2020-06-05 | AC10: =A10 -> DID-159 / VERSIÓN: 08 / REVISIÓN: 2020-06-05
F11: Número: | G11: ='OPERACIONES PREVIAS'!K2 -> DID-159-3123 | P11: =$F$11 -> Número: | Q11: =G11 -> DID-159-3123 | Z11: =$F$11 -> Número: | AA11: =G11 -> DID-159-3123 | AJ11: =$F$11 -> Número: | AK11: =G11 -> DID-159-3123
A12: LABORATORIO DE CALIBRACIÓN | I12: =$A$12 -> LABORATORIO DE CALIBRACIÓN | S12: =$A$12 -> LABORATORIO DE CALIBRACIÓN | AC12: =$A$12 -> LABORATORIO DE CALIBRACIÓN
A13: PRESIÓN | F13: Página 1 de 4 | I13: =$A$13 -> PRESIÓN | P13: =IF(F13="Página 1 de 2","Página 2 de 2",IF(F13="Página 1 de 3","Página 2 de 3",IF(F13="Página 1 de 4","Página 2 de 4",IF(F13="Página 1 de 5","Página 2 de 5",IF(F13="Página 1 de 6","Página 2 de 6",FALSE))))) -> Página 2 de 4 | S13: =$A$13 -> PRESIÓN | Y13: =IF(F13="Página 1 de 3","Página 3 de 3",IF(F13="Página 1 de 4","Página 3 de 4",IF(F13="Página 1 de 5","Página 3 de 5",IF(F13="Página 1 de 6","Página 3 de 6",FALSE)))) -> Página 3 de 4 | AC13: =$A$13 -> PRESIÓN | AI13: =IF(F13="Página 1 de 3","Página 3 de 3",IF(F13="Página 1 de 4","Página 4 de 4",IF(F13="Página 1 de 5","Página 4 de 5",IF(F13="Página 1 de 6","Página 4 de 6",FALSE)))) -> Página 4 de 4
A15: INSTRUMENTO: | D15: ='OPERACIONES PREVIAS'!D5&" "&'OPERACIONES PREVIAS'!G5 -> MANÓMETRO ANALÓGICO | I15: TRAZABILIDAD: | S15: CONDICIONES AMBIENTALES DURANTE LA CALIBRACIÓN: | AC15: DATOS OBTENIDOS DURANTE LA CALIBRACIÓN:
A16: INSTRUMENT | I16: CALIBRATION SERVICE S.A.S. garantiza que sus resultados de medición mantienen la trazabilidad metrológica de acuerdo con las directrices del documento ILAC-P10:01/2013: ILAC “Policy on traceability of measurements results”, y los establecidos en ISO/IEC 17025: 2017. | S16: MÁXIMA | V16: MÍNIMA | Y16: VARIACIÓN MÁXIMA
A17: FABRICANTE: | D17: ='OPERACIONES PREVIAS'!D6 -> STEWARTS-USA | S17: Temperatura: | U17: =REGISTRO!C73 -> 21.8 | V17: Temperatura: | X17: =REGISTRO!C72 -> 21.6 | Y17: Temperatura: | AA17: =U17-X17 -> 0.2
A18: MANUFACTURER | S18: Humedad relativa: | U18: =REGISTRO!E73 -> 61.8 | V18: Humedad relativa: | X18: =REGISTRO!E72 -> 61.5 | Y18: Humedad relativa: | AA18: =U18-X18 -> 0.3
A19: MODELO: | D19: ='OPERACIONES PREVIAS'!D7 -> NO IDENTIFICABLE | S19: Presión atmosférica: | U19: =REGISTRO!G73 -> 749.5 | V19: Presión atmosférica: | X19: =REGISTRO!G72 -> 749.2 | Y19: Presión atmosférica: | AA19: =U19-X19 -> 0.3
A20: MODEL
A21: NÚMERO DE SERIE: | D21: ='OPERACIONES PREVIAS'!D8 -> CR-1419
A22: SERIAL NUMBER | I22: INFORMACIÓN DE LOS INSTRUMENTOS: | S22: INCERTIDUMBRE DE MEDICIÓN:
A23: INTERVALO DE MEDICIÓN: | D23: ='OPERACIONES PREVIAS'!K4&" "&'OPERACIONES PREVIAS'!D9&" a "&'OPERACIONES PREVIAS'!L4&" "&'OPERACIONES PREVIAS'!D9 -> 0 psi a 1500 psi | I23: INSTRUMENTOS PATRÓN EMPLEADOS EN LA CALIBRACIÓN | S23: La incertidumbre expandida de la medición reportada se establece como la incertidumbre estándar de medición multiplicada por el factor de cobertura “k” y la probabilidad de cobertura, la cual debe ser aproximada al 95% y no menor a este valor.
A24: MEASUREMENT RANGE | I24: Instrumento: | K24: =REGISTRO!D7 -> MANÓMETRO DIGITAL | N24: Marca: | O24: =REGISTRO!D8 -> ADDITEL
A25: INTERVALO DE CALIBRACIÓN: | D25: ='OPERACIONES PREVIAS'!K5&" "&'OPERACIONES PREVIAS'!D9&" a "&'OPERACIONES PREVIAS'!L5&" "&'OPERACIONES PREVIAS'!D9 -> 0 psi a 1500 psi | I25: Serie: | K25: =REGISTRO!D14 -> CS-MP-010 / 27312320013 | N25: Modelo: | O25: =REGISTRO!D9 -> ADT672
A26: CALIBRATION RANGE | I26: Certificado No: | K26: =REGISTRO!D11 -> LPR181275a | N26: Intervalo de medición: | P26: =CONCATENATE(" 0 psi a ",,REGISTRO!D10," psi") -> 0 psi a 3000 psi
A27: SOLICITANTE: | D27: ='OPERACIONES PREVIAS'!C2 -> SCHLUMBERGER SURENCO S A | I27: Fecha de calibración: | K27: =REGISTRO!D12 -> 2018-10-12 | S27: DATOS OBTENIDOS DURANTE LA CALIBRACIÓN:
A28: CUSTOMER
A29: DIRECCIÓN: | D29: ='OPERACIONES PREVIAS'!C3 -> KILOMETRO 1.5 VIA SIBERIA COTA PARQUE INDUSTRIAL POTRERO CHICO, COTA | I29: Instrumento: | K29: ='CORRECCIÓN EQUIPOS AUX'!M21 -> BARÓMETRO | N29: Marca: | O29: ='CORRECCIÓN EQUIPOS AUX'!Q21 -> EXTECH | T29: Lectura promedio Patrón | U29: Lectura promedio IBC | V29: Corrección promedio de calibración | X29: Factor de cobertura | Y29: Incertidumbre Expandida
A30: ADDRESS | I30: Serie: | K30: ='CORRECCIÓN EQUIPOS AUX'!M22 -> A.078181 | N30: Modelo: | O30: ='CORRECCIÓN EQUIPOS AUX'!Q22 -> SD700
A31: FECHA DE RECEPCIÓN: | D31: ='OPERACIONES PREVIAS'!D11 -> 2020-12-14 | I31: Certificado No: | K31: ='CORRECCIÓN EQUIPOS AUX'!M23 -> CERT-18-EMP-1991-3357 | N31: Intervalo de medición: | P31: ='CORRECCIÓN EQUIPOS AUX'!Q23 -> 500 hPa a 1100 hPa | T31: ='OPERACIONES PREVIAS'!D9 -> psi | U31: ='OPERACIONES PREVIAS'!D9 -> psi | V31: ='OPERACIONES PREVIAS'!D9 -> psi | W31: %L | X31: k | Y31: ='OPERACIONES PREVIAS'!D9 -> psi | Z31: % Lec.
A32: DATE OF RECEPTION | I32: Fecha de calibración: | K32: ='CORRECCIÓN EQUIPOS AUX'!M24 -> 2018-12-11 | T32: =REGISTRO!C138 -> 0.2249 | U32: =REGISTRO!D138 -> 0 | V32: =FIXED(REGISTRO!E138,REGISTRO!J126) -> ,3172250 | W32: 0 | X32: =IF(W32="----","----",REGISTRO!E126) -> 1.971896224 | Y32: =IF(X32="----","----",REGISTRO!G126) -> 7,1160 | Z32: 0 | AA32: =IF('OPERACIONES PREVIAS'!$D$16="SI",IFERROR(IF(SUM(V32+Y32)>REGISTRO!AA134,"NO CONFORME","CONFORME"),""),"") -> 
A33: FECHA DE CALIBRACIÓN: | D33: ='OPERACIONES PREVIAS'!D12 -> 2020-12-23 | T33: =REGISTRO!C139 -> 301.8933778 | U33: =REGISTRO!D139 -> 300 | V33: =FIXED(REGISTRO!E139,REGISTRO!J127) -> 1,9857028 | W33: =(V33/U33)*100 -> 0.6619009333 | X33: =REGISTRO!E127 -> 1.971718848 | Y33: =REGISTRO!G127 -> 7,1612 | Z33: =REGISTRO!I127 -> 2,3871 | AA33: =IF('OPERACIONES PREVIAS'!$D$16="SI",IFERROR(IF(SUM(V33+Y33)>REGISTRO!AA135,"NO CONFORME","CONFORME"),""),"") -> 
A34: DATE OF CALIBRATION | I34: Instrumento: | K34: =IF(REGISTRO!E4=LISTAS!A17,'CORRECCIÓN EQUIPOS AUX'!C2,'CORRECCIÓN EQUIPOS AUX'!C21) -> TERMOHIGRÓMETRO DIGITAL | N34: Marca: | O34: =IF(REGISTRO!$E$4=LISTAS!$A$17,'CORRECCIÓN EQUIPOS AUX'!G2,'CORRECCIÓN EQUIPOS AUX'!G21) -> T&D CORPORATION | T34: =REGISTRO!C140 -> 599.2449418 | U34: =REGISTRO!D140 -> 600 | V34: =FIXED(REGISTRO!E140,REGISTRO!J128) -> -,6627332 | W34: =(V34/U34)*100 -> -0.1104555333 | X34: =REGISTRO!E128 -> 1.970805592 | Y34: =REGISTRO!G128 -> 7,2905 | Z34: =REGISTRO!I128 -> 1,2151 | AA34: =IF('OPERACIONES PREVIAS'!$D$16="SI",IFERROR(IF(SUM(V34+Y34)>REGISTRO!AA136,"NO CONFORME","CONFORME"),""),"") -> 
A35: FECHA DE EXPEDICIÓN: | D35: =IF('OPERACIONES PREVIAS'!K11="","",'OPERACIONES PREVIAS'!K11) -> 2020-12-23 | I35: Serie: | K35: =IF(REGISTRO!E4=LISTAS!A17,'CORRECCIÓN EQUIPOS AUX'!C3,'CORRECCIÓN EQUIPOS AUX'!C22) -> F80629AA | N35: Modelo: | O35: =IF(REGISTRO!$E$4=LISTAS!$A$17,'CORRECCIÓN EQUIPOS AUX'!G3,'CORRECCIÓN EQUIPOS AUX'!G22) -> TR-73U | T35: =REGISTRO!C141 -> 895.1466651 | U35: =REGISTRO!D141 -> 900 | V35: =FIXED(REGISTRO!E141,REGISTRO!J129) -> -4,7610098 | W35: =(V35/U35)*100 -> -0.5290010889 | X35: =REGISTRO!E129 -> 1.966649995 | Y35: =REGISTRO!G129 -> 8,6240 | Z35: =REGISTRO!I129 -> 001 | AA35: =IF('OPERACIONES PREVIAS'!$D$16="SI",IFERROR(IF(SUM(V35+Y35)>REGISTRO!AA137,"NO CONFORME","CONFORME"),""),"") -> 
A36: DATE OF ISSUE | I36: Certificado No: | K36: =IF(REGISTRO!E4=LISTAS!A17,'CORRECCIÓN EQUIPOS AUX'!C4,'CORRECCIÓN EQUIPOS AUX'!C23) -> C4502-20 | N36: Intervalo de medición: | P36: =IF(REGISTRO!$E$4=LISTAS!$A$17,'CORRECCIÓN EQUIPOS AUX'!G4,'CORRECCIÓN EQUIPOS AUX'!G23) -> 18°C a 28 °C / 30 %HR a 70%HR | T36: =REGISTRO!C142 -> 1200.992184 | U36: =REGISTRO!D142 -> 1200 | V36: =FIXED(REGISTRO!E142,REGISTRO!J130) -> 1,0845092 | W36: =(V36/U36)*100 -> 0.09037576667 | X36: =REGISTRO!E130 -> 1.970066853 | Y36: =REGISTRO!G130 -> 7,4315 | Z36: =REGISTRO!I130 -> 001 | AA36: =IF('OPERACIONES PREVIAS'!$D$16="SI",IFERROR(IF(SUM(V36+Y36)>REGISTRO!AA138,"NO CONFORME","CONFORME"),""),"") -> 
A37: NÚMERO DE PÁGINAS: | D37: =IF(F13="Página 1 de 2",2,IF(F13="Página 1 de 3",3,IF(F13="Página 1 de 4",4,IF(F13="Página 1 de 5",5,IF(F13="Página 1 de 6",6,FALSE))))) -> 4 | I37: Fecha de calibración: | K37: =IF(REGISTRO!E4=LISTAS!A17,'CORRECCIÓN EQUIPOS AUX'!C5,'CORRECCIÓN EQUIPOS AUX'!C24) -> 2020-01-05 | T37: =REGISTRO!C143 -> 1492.534135 | U37: =REGISTRO!D143 -> 1500 | V37: =FIXED(REGISTRO!E143,REGISTRO!J131) -> -7,3735402 | W37: =(V37/U37)*100 -> -0.4915693467 | X37: =REGISTRO!E131 -> 1.965942324 | Y37: =REGISTRO!G131 -> 10,402 | Z37: =REGISTRO!I131 -> 001 | AA37: =IF('OPERACIONES PREVIAS'!$D$16="SI",IFERROR(IF(SUM(V37+Y37)>REGISTRO!AA139,"NO CONFORME","CONFORME"),""),"") ->  | AC37: =IF('OPERACIONES PREVIAS'!$D$16="SI","Regla de desición:","OBSERVACIONES:") -> OBSERVACIONES:
A38: NUMBER OF PAGES | AC38: =IF(AND('OPERACIONES PREVIAS'!$D$16="SI",'OPERACIONES PREVIAS'!$K$16="CALIBRATION SERVICE S.A.S."),LISTAS!A23,IF('OPERACIONES PREVIAS'!$D$16="NO",CONCATENATE(IF(REGISTRO!E4="INSTALACIONES DEL CLIENTE ",CONCATENATE("La calibración se realizó en sitio en la dirección: ",'OPERACIONES PREVIAS'!D18,"."),"La calibración se realizó en las instalaciones permanentes de Calibration Service S.A.S.")," ",'OPERACIONES PREVIAS'!B81),'OPERACIONES PREVIAS'!B21)) -> La calibración se realizó en las instalaciones permanentes de Calibration Service S.A.S.
I39: Instrumento: | K39: =IF('OPERACIONES PREVIAS'!$D$14<>"Aire",'CORRECCIÓN EQUIPOS AUX'!C55,"-------------------") -> REGLA GRADUADA | N39: Marca: | O39: =IF('OPERACIONES PREVIAS'!$D$14<>"Aire",'CORRECCIÓN EQUIPOS AUX'!G55,"-------------------") -> PEC | T39: Lectura promedio Patrón | U39: Lectura promedio IBC | V39: Corrección promedio de calibración | X39: Factor de cobertura | Y39: Incertidumbre Expandida
A40: AUTORIZADO POR: | I40: Serie: | K40: =IF('OPERACIONES PREVIAS'!$D$14<>"Aire",'CORRECCIÓN EQUIPOS AUX'!C56,"-------------------") -> SN-0085-17 / CS-RP-002 | N40: Modelo: | O40: =IF('OPERACIONES PREVIAS'!$D$14<>"Aire",'CORRECCIÓN EQUIPOS AUX'!G56,"-------------------") -> 7187-204
A41: AUTHORIZED FOR | I41: Certificado No: | K41: =IF('OPERACIONES PREVIAS'!$D$14<>"Aire",'CORRECCIÓN EQUIPOS AUX'!C57,"-------------------") -> CD-3115 | N41: Intervalo de medición: | P41: =IF('OPERACIONES PREVIAS'!$D$14<>"Aire",'CORRECCIÓN EQUIPOS AUX'!G57,"-------------------") -> 0 mm a 600 mm | T41: =REGISTRO!$G$137 -> kPa | U41: =REGISTRO!$G$137 -> kPa | V41: =REGISTRO!$G$137 -> kPa | W41: % Lec. | X41: k | Y41: =REGISTRO!$G$137 -> kPa | Z41: % Lec.
I42: Fecha de calibración: | K42: =IF('OPERACIONES PREVIAS'!$D$14<>"Aire",'CORRECCIÓN EQUIPOS AUX'!C58,"-------------------") -> 2018-11-19 | T42: =REGISTRO!H138 -> 1.550631524 | U42: =REGISTRO!I138 -> 0 | V42: =REGISTRO!J138 -> 2.187190415 | W42: =W32 -> 0 | X42: =REGISTRO!E126 -> 1.971896224 | Y42: =REGISTRO!K138 -> 49,063 | Z42: =Z32 -> 0 | AA42: =IF(SUM(V32+Y32)>REGISTRO!AA134,"NO CONFORME","CONFORME") -> CONFORME
T43: =REGISTRO!H139 -> 2081.482386 | U43: =REGISTRO!I139 -> 2068.428 | V43: =REGISTRO!J139 -> 13.69094456 | W43: =(V43/U43)*100 -> 0.6619009492 | X43: =REGISTRO!E127 -> 1.971718848 | Y43: =REGISTRO!K139 -> 49,375 | Z43: 2,3871
I44: INSTRUMENTO CALIBRADO | T44: =REGISTRO!H140 -> 4131.650055 | U44: =REGISTRO!I140 -> 4136.856 | V44: =REGISTRO!J140 -> -4.569386133 | W44: =(V44/U44)*100 -> -0.1104555279 | X44: =REGISTRO!E128 -> 1.970805592 | Y44: =REGISTRO!K140 -> 50,266 | Z44: 1,2151
B45: =REGISTRO!D161 -> MICHAEL VALERO | I45: Instrumento: | K45: =CERTIFICADO!D15 -> MANÓMETRO ANALÓGICO | T45: =REGISTRO!H141 -> 6171.821421 | U45: =REGISTRO!I141 -> 6205.284 | V45: =REGISTRO!J141 -> -32.82602011 | W45: =(V45/U45)*100 -> -0.5290010918 | X45: =REGISTRO!E129 -> 1.966649995 | Y45: =REGISTRO!K141 -> 59,460 | Z45: 001
C46: =REGISTRO!H161 -> ESPECIALISTA TÉCNICO | I46: División de escala: | K46: ='OPERACIONES PREVIAS'!K6&" "&'OPERACIONES PREVIAS'!L6 -> 25 psi | N46: Serie: | O46: ='OPERACIONES PREVIAS'!D8 -> CR-1419 | T46: =REGISTRO!H142 -> 8280.552872 | U46: =REGISTRO!I142 -> 8273.712 | V46: =REGISTRO!J142 -> 7.477430484 | W46: =(V46/U46)*100 -> 0.09037576464 | X46: =REGISTRO!E130 -> 1.970066853 | Y46: =REGISTRO!K142 -> 51,239 | Z46: 001
I47: Resolución: | K47: ='OPERACIONES PREVIAS'!K7&" "&'OPERACIONES PREVIAS'!L7 -> 12,5 psi | N47: Modelo: | O47: ='OPERACIONES PREVIAS'!D7 -> NO IDENTIFICABLE | T47: =REGISTRO!H143 -> 10290.66465 | U47: =REGISTRO!I143 -> 10342.14 | V47: =REGISTRO!J143 -> -50.83878996 | W47: =(V47/U47)*100 -> -0.491569346 | X47: =REGISTRO!E131 -> 1.965942324 | Y47: =REGISTRO!K143 -> 71,722 | Z47: 001
A48: “Este certificado expresa única y fielmente el(los) resultado(s) para el ítem bajo calibración descrito. No debe ser reproducido total o parcialmente. Una nueva calibración deberá llevarse a cabo cuando el instrumento sea sometido a golpes, ajustes o reparaciones, independientemente del tiempo transcurrido desde la presente calibración. Los intervalos de calibración deben ser determinados de acuerdo a procedimientos de control establecidos por el usuario. Calibration Service S.A.S. no se responsabiliza de la información suministrada por el cliente que pueda afectar a la validez de los resultados; ni de que el(los) resultado(s) corresponda(n) con este registro después de un uso inadecuado del instrumento calibrado por parte del cliente. | I48: Clase de exactitud: | K48: ='OPERACIONES PREVIAS'!K8 -> 1.6
T49: Fluido de calibración: | V49: ='OPERACIONES PREVIAS'!D14 -> Alcohol
I50: MÉTODO: | T50: IBC: | U50: Instrumento bajo calibración | AC50: =IF(AC37="OBSERVACIONES:","","OBSERVACIONES:") ->  | AE50: =IF(AC50="OBSERVACIONES:","","---FIN DEL CERTIFICADO---") -> ---FIN DEL CERTIFICADO---
I51: Comparación directa. | T51: % Lec.: | U51: Porcentaje de lectura | AC51: =IF(AC50="OBSERVACIONES:",CONCATENATE(IF(REGISTRO!E4="INSTALACIONES DEL CLIENTE ",CONCATENATE("La calibración se realizó en sitio en la dirección: ",'OPERACIONES PREVIAS'!D18,"."),"La calibración se realizó en las instalaciones permanentes de Calibration Service S.A.S."),"",'OPERACIONES PREVIAS'!B81),"") -> 
T52: Factor de conversión a SI*: | V52: =REGISTRO!O22&REGISTRO!$P$22&" "&REGISTRO!Q22 -> 1 psi = 6,89476 kPa
I53: DOCUMENTO DE REFERENCIA: | T53: * NIST 811:2008 Guide for the use of the international System of Units (SI)
I54: Procedimiento ME-003 para la calibración de manómetros, vacuómetros y manovacuómetros, edición digital 3 , año 2019, Centro Español de Metrología (CEM). | AC54: =IF(AE50="---FIN DEL CERTIFICADO---","","---FIN DEL CERTIFICADO---") -> 
A57: Carrera 69A No. 55 - 16 sur, Bogotá D.C., Colombia / PBX : (57) (1) 204 7699 - 728 5146 | I57: =$A$57 -> Carrera 69A No. 55 - 16 sur, Bogotá D.C., Colombia / PBX : (57) (1) 204 7699 - 728 5146 | S57: =$A$57 -> Carrera 69A No. 55 - 16 sur, Bogotá D.C., Colombia / PBX : (57) (1) 204 7699 - 728 5146 | AC57: =$A$57 -> Carrera 69A No. 55 - 16 sur, Bogotá D.C., Colombia / PBX : (57) (1) 204 7699 - 728 5146
A58: www.calibrationservicesas.com / e-mail: direcciontecnica@calibrationservicesas.com | I58: =$A$58 -> www.calibrationservicesas.com / e-mail: direcciontecnica@calibrationservicesas.com | S58: =$A$58 -> www.calibrationservicesas.com / e-mail: direcciontecnica@calibrationservicesas.com | AC58: =$A$58 -> www.calibrationservicesas.com / e-mail: direcciontecnica@calibrationservicesas.com

Sheet CORRECCIÓN EQUIPOS AUX (hidden)
A2: Instrumento: | C2: TERMOHIGRÓMETRO DIGITAL | F2: Marca: | G2: T&D CORPORATION
A3: Serie: | C3: F80629AA | F3: Modelo: | G3: TR-73U
A4: Certificado No: | C4: C4502-20 | F4: Intervalo de medición: | G4: 18°C a 28 °C / 30 %HR a 70%HR
A5: Fecha de calibración: | C5: 2020-01-05
A7: INSTALACIONES PERMANENTES
A8: Correcciones condiciones ambientales
A9: Patrón | B9: Instrumento | C9: Corrección | D9: U | E9: Patrón | F9: Instrumento | G9: Corrección | H9: U
A10: 17.682 | B10: 18 | C10: =A10-B10 -> -0.318 | D10: 0.087 | E10: 30.74 | F10: 31 | G10: =E10-F10 -> -0.26 | H10: 0.8
A11: 22.767 | B11: 22 | C11: =A11-B11 -> 0.767 | D11: 0.087 | E11: 49.59 | F11: 50 | G11: =E11-F11 -> -0.41 | H11: 0.8
A12: 27.674 | B12: 27 | C12: =A12-B12 -> 0.674 | D12: 0.087 | E12: 69.49 | F12: 69 | G12: =E12-F12 -> 0.49 | H12: 0.8
A13: Mínimo
A14: Temperatura | B14: 0.0233 | C14: =(REGISTRO!F68)^2 -> 349.69 | D14: -0.154 | E14: =REGISTRO!F68 -> 18.7 | F14: 13.45096763 | G14: Temp (°C) | H14: =(B14*C14)+(D14*E14)+F14 -> 18.71894463
A15: Humedad | B15: -0.00137 | C15: =(REGISTRO!H68)^2 -> 3981.61 | D15: 1.12 | E15: =REGISTRO!H68 -> 63.1 | F15: -2.0768 | G15: Hum (%HR) | H15: =(B15*C15)+(D15*E15)+F15 -> 63.1403943
A16: Máximo
A17: Temperatura | B17: =B14 -> 0.0233 | C17: =(REGISTRO!F69)^2 -> 357.21 | D17: =D14 -> -0.154 | E17: =REGISTRO!F69 -> 18.9 | F17: =F14 -> 13.45096763 | G17: Temp (°C) | H17: =(B17*C17)+(D17*E17)+F17 -> 18.86336063
A18: Humedad | B18: =B15 -> -0.00137 | C18: =(REGISTRO!H69)^2 -> 4032.25 | D18: =D15 -> 1.12 | E18: =REGISTRO!H69 -> 63.5 | F18: =F15 -> -2.0768 | G18: Hum (%HR) | H18: =(B18*C18)+(D18*E18)+F18 -> 63.5190175
A21: Instrumento: | C21: TERMOHIGRÓMETRO | F21: Marca: | G21: EXTECH | K21: Equipo: | M21: BARÓMETRO | P21: Marca: | Q21: EXTECH
A22: Serie: | C22: A.078181 | F22: Modelo: | G22: SD700 | K22: Serie: | M22: A.078181 | P22: Modelo: | Q22: SD700
A23: Certificado No: | C23: C4202 | F23: Intervalo de medición: | G23: 18°C a 28 °C / 30 %HR a 70%HR | K23: Certificado No: | M23: CERT-18-EMP-1991-3357 | P23: Intervalo de medición: | Q23: 500 hPa a 1100 hPa
A24: Fecha de calibración: | C24: 2020-02-05 | K24: Fecha de calibración: | M24: 2018-12-11
A26: SITIO | K26: Presión atmosferica
A27: Correcciones condiciones ambientales | K27: Patrón | L27: Indicación | M27: Error | N27: Corrección | O27: ± U | Q27: Presión atmosferica
A28: Patrón | B28: Instrumento | C28: Corrección | D28: U | E28: Patrón | F28: Instrumento | G28: Corrección | H28: U | K28: (hPa) | L28: (hPa) | M28: (hPa) | N28: (hPa) | O28: (hPa)
A29: 17.682 | B29: 17.6 | C29: =A29-B29 -> 0.082 | D29: 0.25 | E29: 30.74 | F29: 35.6 | G29: =E29-F29 -> -4.86 | H29: 0.87 | K29: 499.73 | L29: 499.9 | M29: =L29-K29 -> 0.17 | N29: =M29*-1 -> -0.17 | O29: 0.14 | Q29: Minimo
A30: 22.767 | B30: 22.6 | C30: =A30-B30 -> 0.167 | D30: 0.25 | E30: 49.59 | F30: 52 | G30: =E30-F30 -> -2.41 | H30: 0.87 | K30: 559.76 | L30: 559.9 | M30: =L30-K30 -> 0.14 | N30: =M30*-1 -> -0.14 | O30: 0.12 | Q30: -1.04e-08 | R30: =(REGISTRO!J68)^3 -> 423903241.7 | S30: 2.32e-05 | T30: =(REGISTRO!J68)^2 -> 564301.44 | U30: 0.9841 | V30: =REGISTRO!J68 -> 751.2 | W30: 3.58 | Y30: =(Q30*R30)+(S30*T30)+(U30*V30)+W30 -> 751.5191197
A31: 27.674 | B31: 27.6 | C31: =A31-B31 -> 0.074 | D31: 0.25 | E31: 69.49 | F31: 71.1 | G31: =E31-F31 -> -1.61 | H31: 0.87 | K31: 634.8 | L31: 635 | M31: 0.2 | N31: -0.2 | O31: 0.11
A32: Minimo | K32: 709.83 | L32: 710.1 | M32: 0.27 | N32: -0.27 | O32: 0.1 | Q32: Máximo
A33: Temperatura | B33: 0.00357 | C33: =(REGISTRO!F68)^2 -> 349.69 | D33: 0.839 | E33: =REGISTRO!F68 -> 18.7 | F33: 1.650605 | G33: Temp (°C) | H33: =(B33*C33)+(D33*E33)+F33 -> 18.5882983 | K33: 784.85 | L33: 785.3 | M33: 0.45 | N33: -0.45 | O33: 0.1 | Q33: =Q30 -> -1.04e-08 | R33: =(REGISTRO!J69)^3 -> 425598400.6 | S33: =S30 -> 2.32e-05 | T33: =(REGISTRO!J69)^2 -> 565804.84 | U33: =U30 -> 0.9841 | V33: =(REGISTRO!J69) -> 752.2 | W33: =W30 -> 3.58 | Y33: =(Q33*R33)+(S33*T33)+(U33*V33)+W33 -> 752.5204689
A34: Humedad | B34: 0.00232 | C34: =(REGISTRO!H68)^2 -> 3981.61 | D34: 0.684 | E34: =REGISTRO!H68 -> 63.1 | F34: 12.386967 | G34: Hum (%HR) | H34: =(B34*C34)+(D34*E34)+F34 -> 64.7847022 | K34: 859.87 | L34: 860.4 | M34: 0.53 | N34: -0.53 | O34: 0.1
A35: Máximo | K35: 934.89 | L35: 935.4 | M35: 0.51 | N35: -0.51 | O35: 0.1
A36: Temperatura | B36: =B33 -> 0.00357 | C36: =(REGISTRO!F69)^2 -> 357.21 | D36: =D33 -> 0.839 | E36: =REGISTRO!F69 -> 18.9 | F36: =F33 -> 1.650605 | G36: Temp (°C) | H36: =(B36*C36)+(D36*E36)+F36 -> 18.7829447 | K36: 1009.9 | L36: 1010.4 | M36: 0.5 | N36: -0.5 | O36: 0.11
A37: Humedad | B37: =B34 -> 0.00232 | C37: =(REGISTRO!H69)^2 -> 4032.25 | D37: =D34 -> 0.684 | E37: =(REGISTRO!H69) -> 63.5 | F37: =F34 -> 12.386967 | G37: Hum (%HR) | H37: =(B37*C37)+(D37*E37)+F37 -> 65.175787 | K37: 1099.91 | L37: 1100.3 | M37: 0.39 | N37: -0.39 | O37: 0.13
A55: Instrumento: | C55: REGLA GRADUADA | F55: Marca: | G55: PEC
A56: Serie: | C56: SN-0085-17 / CS-RP-002 | F56: Modelo: | G56: 7187-204
A57: Certificado No: | C57: CD-3115 | F57: Intervalo de medición: | G57: 0 mm a 600 mm
A58: Fecha de calibración: | C58: 2018-11-19
B60: Errores certificado anterior (2017) | G60: Resultados de la calibración | M60: Curva de ajuste
G61: Lectura Patrón | H61: Lectura IBC | I61: Error de medición | J61: U Expandida | K61: Error anterior | L61: Deriva | M61: Error estimado | N61: Error residual | O61: U Total
B62: Nominal (mm) | C62: Error (mm)
C63: 0 | G63: mm | H63: mm | I63: mm | J63: µm | K63: mm | L63: mm | M63: mm | N63: mm | O63: µm
B64: 60 | C64: -0.07 | G64: 60 | H64: 59.93 | I64: =H64-G64 -> -0.07 | J64: 0.02 | K64: -0.07 | L64: =J64/SQRT(3) -> 0.01154700538 | M64: =((1.0001*G64)-0.0837)-G64 -> -0.0777 | N64: =M64-I64 -> -0.0077 | O64: =SQRT(J64^2+(2*$N$74)^2) -> 0.0298918049
B65: 120 | C65: -0.075 | G65: 120 | H65: 119.925 | I65: -0.075 | J65: 0.02 | K65: -0.075 | L65: 0.01154700538 | M65: =((1.0001*G65)-0.0837)-G65 -> -0.0717 | N65: 0.0033 | O65: 0.0298918049
B66: 180 | C66: -0.065 | G66: 180 | H66: 179.935 | I66: -0.065 | J66: 0.02 | K66: -0.065 | L66: 0.01154700538 | M66: -0.0657 | N66: -0.0007 | O66: 0.0298918049
B67: 240 | C67: -0.065 | G67: 240 | H67: 239.935 | I67: -0.065 | J67: 0.02 | K67: -0.065 | L67: 0.01154700538 | M67: -0.0597 | N67: 0.0053 | O67: 0.0298918049
B68: 300 | C68: -0.05 | G68: 300 | H68: 299.95 | I68: -0.05 | J68: 0.02 | K68: -0.05 | L68: 0.01154700538 | M68: -0.0537 | N68: -0.0037 | O68: 0.0298918049
B69: 360 | C69: -0.03 | G69: 360 | H69: 359.97 | I69: -0.03 | J69: 0.02 | K69: -0.03 | L69: 0.01154700538 | M69: -0.0477 | N69: -0.0177 | O69: 0.0298918049
B70: 420 | C70: -0.04 | G70: 420 | H70: 419.96 | I70: -0.04 | J70: 0.02 | K70: -0.04 | L70: 0.01154700538 | M70: -0.0417 | N70: -0.0017 | O70: 0.0298918049
B71: 480 | C71: -0.04 | G71: 480 | H71: 479.96 | I71: -0.04 | J71: 0.02 | K71: -0.04 | L71: 0.01154700538 | M71: -0.0357 | N71: 0.0043 | O71: 0.0298918049
B72: 540 | C72: -0.02 | G72: 540 | H72: 539.98 | I72: -0.02 | J72: 0.02 | K72: -0.02 | L72: 0.01154700538 | M72: -0.0297 | N72: -0.0097 | O72: 0.0298918049
B73: 600 | C73: -0.015 | G73: 600 | H73: 599.985 | I73: -0.015 | J73: 0.02 | K73: -0.015 | L73: 0.01154700538 | M73: -0.0237 | N73: -0.0087 | O73: 0.0298918049
L74: Error Típico | N74: =SQRT(SUMSQ(N64:N73)/(10-COUNTA(C87:C91)-1)) -> 0.01110765502
B76: Errores certificado actual (2018-11-19)
B78: Nominal | C78: Error | D78: U expandida | E78: Deriva | F78: Error estimado | G78: Error residual | H78: U total | I78: Corrección
B79: (mm) | C79: (mm) | D79: (mm) | E79: (mm) | F79: (mm) | G79: (mm) | H79: (mm) | I79: (mm)
B80: 100 | C80: -0.103 | D80: 0.04 | E80: =D80/SQRT(3) -> 0.02309401077 | F80: =($C$87)+($C$88*B80)+($C$89*B80^2)+($C$90*B80^3)+($C$91*B80^4)-B80 -> -0.09812 | G80: =F80-C80 -> 0.00488 | H80: =SQRT(SUMSQ((D80/2),$F$90)) -> 0.0315553989 | I80: =C80*-1 -> 0.103
B81: 200 | C81: -0.049 | D81: 0.04 | E81: 0.02309401077 | F81: -0.06676 | G81: -0.01776 | H81: =SQRT(SUMSQ((D81/2),$F$90)) -> 0.0315553989 | I81: 0.049
B82: 300 | C82: -0.094 | D82: 0.04 | E82: 0.02309401077 | F82: -0.06904 | G82: 0.02496 | H82: =SQRT(SUMSQ((D82/2),$F$90)) -> 0.0315553989 | I82: 0.094
B83: 400 | C83: -0.078 | D83: 0.04 | E83: 0.02309401077 | F83: -0.09308 | G83: -0.01508 | H83: 0.0315553989 | I83: 0.078
B84: 500 | C84: -0.128 | D84: 0.04 | E84: 0.02309401077 | F84: -0.127 | G84: 0.001 | H84: 0.0315553989 | I84: 0.128
B85: 600 | C85: -0.158 | D85: 0.04 | E85: 0.02309401077 | F85: -0.15892 | G85: -0.0009199999999 | H85: 0.0315553989 | I85: 0.158
B87: a0 | C87: -0.175 | G87: U máx | H87: =MAX(H80:H85) -> 0.0315553989 | I87: mm
B88: a1 | C88: 1.001036
B89: a2 | C89: -2.87e-06 | E89: Suma | F89: =SUMSQ(G80:G85) -> 0.0011914864
B90: a3 | C90: 1.98e-09 | E90: u pol | F90: =SQRT((F89)/(COUNT(B80:B85)-COUNTA(C87:C91))) -> 0.0244078512
B91: a4
B93: CORRECCIÓN DIFERENCIA DE ALTURAS
B94: Altura Patrón: | D94: 0 | E94: =('OPERACIONES PREVIAS'!K14)^5 -> 320000000000 | F94: 0 | G94: =('OPERACIONES PREVIAS'!K14)^4 -> 1600000000 | H94: =C90 -> 1.98e-09 | I94: =('OPERACIONES PREVIAS'!K14)^3 -> 8000000 | J94: =C89 -> -2.87e-06 | K94: =('OPERACIONES PREVIAS'!K14)^2 -> 40000 | L94: =C88 -> 1.001036 | M94: ='OPERACIONES PREVIAS'!K14 -> 200 | N94: =C87 -> -0.175 | P94: =(D94*E94)+(F94*G94)+(H94*I94)+(J94*K94)+(L94*M94)+N94 -> 199.93324 | Q94: ='OPERACIONES PREVIAS'!K14+'CORRECCIÓN EQUIPOS AUX'!P94 -> 399.93324
B96: CORRECCIÓN DIFERENCIA DE ALTURAS
B97: Altura IBC: | D97: =D94 -> 0 | E97: =('OPERACIONES PREVIAS'!K15)^5 -> 796262400000 | F97: =F94 -> 0 | G97: =('OPERACIONES PREVIAS'!K15)^4 -> 3317760000 | H97: =H94 -> 1.98e-09 | I97: =('OPERACIONES PREVIAS'!K15)^3 -> 13824000 | J97: =J94 -> -2.87e-06 | K97: =('OPERACIONES PREVIAS'!K15)^2 -> 57600 | L97: =L94 -> 1.001036 | M97: ='OPERACIONES PREVIAS'!K15 -> 240 | N97: =N94 -> -0.175 | P97: =(D97*E97)+(F97*G97)+(H97*I97)+(J97*K97)+(L97*M97)+N97 -> 239.9356995 | Q97: ='OPERACIONES PREVIAS'!K15+'CORRECCIÓN EQUIPOS AUX'!P97 -> 479.9356995

Sheet LISTADO DE PATRONES (hidden)
A1: DATOS DE LOS PATRONES DE TRABAJO USADOS EN LA CALIBRACIÓN
A2: RANGO EN psi | B2: MARCA | C2: MODELO | D2: SERIE | E2: RANGO | F2: NÚMERO DE CERTIFICADO | G2: FECHA DE CALIBRACIÓN | H2: PRÓXIMA CALIBRACIÓN | I2: PRECISIÓN | J2: TOLERANCIA | K2: DERIVA | L2: RESOLUCIÓN
A4: 15 | B4: FLUKE | C4: 2700G-BG100K | D4: CS-MP-013 / 3329023 | E4: 0 a 100 kPa (0 a 15 psi) | F4: LPR200098a | G4: 2020-01-24 | H4: 2022-01-24 | I4: 0.0002 | J4: =(I4*A4) -> 0.003 | K4: 0.003 | L4: 0.0001
A5: 50 | B5: ADDITEL | C5: ADT672 | D5: CS-MP-008 / 27312090063 | E5: 0 a 345 kPa (0 a 50 psi) | F5: LPR200099 | G5: 2020-01-24 | H5: 2022-01-24 | I5: 0.00025 | J5: 0.0125 | K5: 0.0125 | L5: 0.001
A6: 300 | B6: AMETEK | C6: IPI300CBXXINDG | D6: CS-MP-005 / 9615005 | E6: 0 a 2068 kPa (0 a 300 psi) | F6: LRP200101 | G6: 2020-01-23 | H6: 2022-01-23 | I6: 0.0005 | J6: 0.15 | K6: 0.15 | L6: 0.001
A7: 1000 | B7: ADDITEL | C7: ADT672 | D7: CS-MP-011 / 27312330044 | E7: 0 a 6895 kPa (0 a 1000 psi) | F7: LPR200103 | G7: 2020-01-24 | H7: 2022-01-24 | I7: 0.00025 | J7: 0.25 | K7: 0.25 | L7: 0.001
A8: 3000 | B8: ADDITEL | C8: ADT672 | D8: CS-MP-010 / 27312320013 | E8: 0 a 20648 kPa (300 a 3000 psi) | F8: LPR181275a | G8: 2018-10-12 | H8: 2020-10-12 | I8: 0.00025 | J8: 0.75 | K8: 0.75 | L8: 0.001
A9: 5000 | B9: ADDITEL | C9: ADT672 | D9: CS-MP-009 / 27312330020 | E9: 0 a 34474 kPa (0 a 5000 psi) | F9: LPR-161115 | G9: 2016-07-18 | H9: 2019-07-18 | I9: 0.00025 | J9: 1.25 | K9: 1.25 | L9: 0.001
A10: 10000 | B10: FLUKE | C10: FLUKE 2700G | D10: CS-MP-017 / 3743515 | E10: 0 a 68948 kPa (0 a 10000 psi) | F10: LPR200096 | G10: 2020-01-27 | H10: 2022-01-27 | I10: 0.0002 | J10: 2 | K10: 2 | L10: 0.1
A11: 36000 | B11: ADDITEL | C11: ADT672 | D11: CS MP-012 / 27312420004 | E11: 0 a 248211 kPa (0 a 36000 psi) | F11: LPR-161118 | G11: 2016-07-21 | H11: 2021-07-21 | I11: 0.001 | J11: 36 | K11: 36 | L11: 0.001
A12: -15 | B12: FLUKE | C12: 2700G-BG100K | D12: =D4 -> CS-MP-013 / 3329023 | E12: 0 a -100 kPa (0 a -15 psi) | F12: LPR200097 | G12: 2020-01-24 | H12: 2022-01-24 | I12: 0.0005 | J12: -0.0075 | K12: 0.003 | L12: 0.0001
A13: -30 | B13: AMETEK | C13: IPI300CBXXINDG | D13: =D6 -> CS-MP-005 / 9615005 | E13: (-30 inHg a 300 psi) | F13: LRP200102 | G13: 2020-01-23 | H13: 2022-01-23 | I13: 0.0005 | J13: -0.015 | K13: 0.15 | L13: 0.001

Sheet PRESUPUESTO DE U (hidden)
D2: REQUISITOS DE GESTIÓN TÉCNICA | N2: FLAB-07-P1
D5: CERTIFICADO DE CALIBRACIÓN DE MANÓMETROS, VACUÓMETROS Y MANOVACUÓMETROS | N5: Revisión: | O5: 3
N7: Versión: | O7: 3
D8: PRESUPUESTO DE U
B22: MENSURANDO: | D22: Correccióm de calibración
B24: MODELO:
B26: ECUACIÓN MODELO:
B31: LISTADO DE VARIABLES
E33: Magnitud | F33: Unidad | G33: Descripción
E34: C | F34: Pa | G34: Corrección de la calibración final
E35: PRi | F35: Pa | G35: Es el valor de la lectura del Patrón
E36: Pxi | F36: Pa | G36: Es el valor de la lectura del instrumento
E37: δ(Pat) | F37: Pa | G37: Es la suma de las correcciones debidas al Patrón, nulas o no, que van a tener contribución en la incertidumbre.
E39: δCal | F39: Pa | G39: Corrección de calibración del patrón (certificado de calibración).
E40: δDer | F40: Pa | G40: Corrección debida a la deriva del patrón.
E41: δTem | F41: Pa | G41: Corrección debida a temperatura (Patrón).
E42: δ(IBC) | F42: Pa | G42: Es la suma de las correcciones debidas al instrumento, nulas o no, que van a tener contribución en la incertidumbre.
E44: δRes | F44: Pa | G44: Corrección debida a resolución del IBC.
E45: δHis | F45: Pa | G45: Corrección debida a temperatura (IBC).
E46: δTem | F46: Pa | G46: Corrección debida a histéresis del IBC.
E47: ΔNR | F47: Pa | G47: Es la corrección por diferencia de alturas entre los niveles de referencia.
E49: ρf | F49: k/m3 | G49: Es la densidad del fluido manométrico
E50: ρa | F50: k/m3 | G50: Es la densidad del aire
E51: gl | F51: m/s2 | G51: Gravedad
E52: h | F52: m | G52: Diferencia de altura
E53: u | F53: Pa | G53: Incertidumbre estandar
E54: uc | F54: Pa | G54: Incertidumbre combinada estandar
E55: veff | G55: Grados efectivos de libertad
E56: k95,45% | G56: Factor de covertura, 95,45% nivel de confianza
E57: U | F57: Pa | G57: Incertidumbre expandida
E58: Las correcciones debidas al patrón, al instrumento toman el valor cero. No ocurre lo mismo con sus contribuciones a la incertidumbre:
B61: PRESUPUESTO DE INCERTIDUMBRES
C64: Vnominal | D64: PRi | E64: Pxi | F64: C | G64: k | H64: U
C65: 0 | D65: =VLOOKUP(C65,REGISTRO!B138:D143,2,0) -> 0.2249 | E65: =VLOOKUP('PRESUPUESTO DE U'!C65,REGISTRO!B138:D143,3,0) -> 0 | F65: =D65-E65+SUM(D72:D74)+SUM(D75:D77)+D82 -> 92.54992529 | G65: =F91 ->  | H65: =F93 -> 
B68: Magnitud | D68: Estimación | E68: Incertidumbres Estándar | I68: Distribución de Probabilidad | J68: Coeficiente de Sensibilidad | K68: Grados de Libertad | L68: Contribución a la Incertidumbre | N68: Unidad | O68: Contribución a la Incertidumbre
R69: ="Contribución en ("&N71&")" -> Contribución en (psi) | S69: Contribución en (%)
E70: Símbolo | F70: Valor | G70: Incertidumbre estándar
B71: δ(IBC) | C71: PRi - Pxi | D71: =D65-E65 -> 0.2249 | E71: u(δRep) | F71: =VLOOKUP($C$65,REGISTRO!$B$114:$J$119,2,0) -> 0 | G71: σ/√n | H71: =F71/SQRT(4) -> 0 | I71: Normal | J71: 1 | K71: 3 | L71: u(δRep) * 1 | M71: =J71*H71 -> 0 | N71: ='OPERACIONES PREVIAS'!$D$9 -> psi | O71: =M71^2/SUMSQ(M71:M74,M75:M77,M82) -> 0 | R71: =M71 -> 0 | S71: =O71 -> 0
C72: δRes | D72: 0 | E72: u(δRes) | F72: =VLOOKUP($C$65,REGISTRO!$B$114:$J$119,3,0) -> 3.608439182 | G72: Res / 2√3 | H72: =F72/SQRT(12) -> 1.041666667 | I72: Rectangular | J72: 1 | K72: 200 | L72: u(δRes) * 1 | M72: 1.041666667 | N72: ='OPERACIONES PREVIAS'!$D$9 -> psi | O72: =M72^2/SUMSQ(M71:M74,M75:M77,M82) -> 0.9995813776 | R72: =M72 -> 1.041666667 | S72: =O72 -> 0.9995813776
C73: δHis | D73: 0 | E73: u(δHis) | F73: =VLOOKUP($C$65,REGISTRO!$B$114:$J$119,4,0) -> 0 | G73: His / 2√3 | H73: =F73/SQRT(12) -> 0 | I73: Rectangular | J73: 1 | K73: 200 | L73: u(δHis) * 1 | M73: 0 | N73: ='OPERACIONES PREVIAS'!$D$9 -> psi | O73: =M73^2/SUMSQ(M71:M74,M75:M77,M82) -> 0 | R73: 0 | S73: 0
C74: δTem | D74: 0 | E74: u(δTem) | F74: =VLOOKUP($C$65,REGISTRO!$B$114:$J$119,5,0) -> 0 | G74: Tem / 2√3 | H74: =F74/SQRT(12) -> 0 | I74: Rectangular | J74: 1 | K74: 200 | L74: u(δTem) * 1 | M74: 0 | N74: ='OPERACIONES PREVIAS'!$D$9 -> psi | O74: =M74^2/SUMSQ(M71:M74,M75:M77,M82) -> 0 | R74: 0 | S74: 0
B75: δ(Pat) | C75: δCal | D75: 0 | E75: u(δCal) | F75: =VLOOKUP($C$65,REGISTRO!$B$114:$J$119,7,0) -> 0.042 | G75: U / k | H75: =F75/2 -> 0.021 | I75: Normal | J75: 1 | K75: 200 | L75: u(δCal) * 1 | M75: 0.021 | N75: ='OPERACIONES PREVIAS'!$D$9 -> psi | O75: =M75^2/SUMSQ(M71:M74,M75:M77,M82) -> 0.0004062554611 | R75: 0.021 | S75: 0.0004062554611
C76: δDer | D76: 0 | E76: u(δDer) | F76: =VLOOKUP($C$65,REGISTRO!$B$114:$J$119,8,0) -> 0.008660254038 | G76: Der / 2√3 | H76: =F76/SQRT(12) -> 0.0025 | I76: Rectangular | J76: 1 | K76: 200 | L76: u(δDer) * 1 | M76: 0.0025 | N76: ='OPERACIONES PREVIAS'!$D$9 -> psi | O76: =M76^2/SUMSQ(M71:M74,M75:M77,M82) -> 5.757588735e-06 | R76: 0.0025 | S76: 5.757588735e-06
C77: δTem | D77: 0 | E77: u(δTem) | F77: =VLOOKUP($C$65,REGISTRO!$B$114:$J$119,9,0) -> 0 | G77: Tem / 2√3 | H77: =F77/SQRT(12) -> 0 | I77: Rectangular | J77: 1 | K77: 200 | L77: u(δTem) * 1 | M77: 0 | N77: ='OPERACIONES PREVIAS'!$D$9 -> psi | O77: =M77^2/SUMSQ(M71:M74,M75:M77,M82) -> 0 | R77: 0 | S77: 0
B78: ΔNR | C78: ρf | D78: =REGISTRO!I10 -> 812.8 | E78: u(ρf) | F78: =REGISTRO!J10 -> 81.28 | G78: ρf / 2√3 | H78: =F78/SQRT(12) -> 23.46351494 | I78: Rectangular | J78: gL * h | K78: 200 | L78: u(ρf) * (gL * h) | M78: =(D80*IF($D$81=0,$F$81,$D$81)*H78) -> 18.39596126 | N78: Pa | O78: =M82^2/SUMSQ(M71:M74,M75:M77,M82) -> 6.60934404e-06 | R78: =M82 -> 0.002678544514 | S78: 6.60934404e-06
C79: ρa | D79: =REGISTRO!I11 -> 0.8876 | E79: u(ρa) | F79: =REGISTRO!J11 -> 0.012 | G79: ρa / 2√3 | H79: =F79/SQRT(12) -> 0.003464101615 | I79: Rectangular | J79: - gL *h | K79: 200 | L79: u(ρa)*(- gL *h) | M79: =(-D80*IF($D$81=0,$F$81,$D$81))*H79 -> -0.002715939163 | N79: Pa
C80: gL | D80: =REGISTRO!I12 -> 9.8 | E80: u(gL) | F80: =REGISTRO!J12 -> 0.05 | G80: gL / k | H80: =F80/2 -> 0.025 | I80: Normal | J80: (ρf - ρa) * h | K80: 200 | L80: u(gL)*(ρf - ρa) * h | M80: =((D78-D79)*IF($D$81=0,$F$81,$D$81))*H80 -> 1.623874723 | N80: Pa
C81: h | D81: =REGISTRO!I9 -> 0.08000245952 | E81: u(h) | F81: =REGISTRO!J9 -> 3.15553989e-05 | G81: h / k | H81: =F81/2 -> 1.577769945e-05 | I81: Normal | J81: (ρf - ρa) * gL | K81: 200 | L81: u(h)*(ρf - ρa) * gL | M81: =((D78-D79)*D80)*H81 -> 0.1255390763 | N81: Pa
C82: ΔNR | D82: =((D78-D79)*D80*D81)/F.C -> 92.32502529 | E82: u(ΔNR) | F82: =REGISTRO!I14 -> 0.09232502529 | G82: =N82 -> psi | H82: =SQRT(SUMSQ(M78:M81)) -> 18.46792157 | I82: Normal | J82: 1 | K82: 200 | L82: u(ΔNR) * 1 | M82: =REGISTRO!J104 -> 0.002678544514 | N82: ='OPERACIONES PREVIAS'!$D$9 -> psi
G83: =N83 -> 0
B84: uc | F84: =SQRT(SUMSQ(M71,M72,M73,M74,M75,M76,M77,M82)) -> 1.041884768 | G84: ='OPERACIONES PREVIAS'!$D$9 -> psi
J85: u(δRep)
J86: u(δRes)
J87: u(δHis)
B88: vef | F88: =(F84^4)/(M71^4/K71)+(M72^4/K72)+(M73^4/K73)+(M74^4/K74)+(M75^4/K75)+(M76^4/K76)+(M77^4/K77)++(M82^4/K82) ->  | J88: u(δTem)
J89: u(δCal)
J90: u(δDer)
B91: k95,45% | F91: =TINV((100%-95.45%),F88) ->  | J91: u(δTem)
J92: u(ΔNR)
B93: U | C93: uc*k | F93: =F91*F84 ->  | G93: ='OPERACIONES PREVIAS'!$D$9 -> psi
F95: =D65-E65+SUM(D72:D74)+SUM(D75:D77)+F82 -> 0.3172250253 | G95: ='OPERACIONES PREVIAS'!$D$9 -> psi

Sheet TABLA DE CONVERSIÓN (hidden)
A1: TABLAS DE CONVERSIÓN PARA UNIDADES DE PRESIÓN - NTC 3669:1995
A2: UNIDADES | B2: Pa | C2: kPa | D2: MPa | E2: bar | F2: mbar | G2: psi | H2: kg/cm² | I2: kgf/m2 | J2: inHg | K2: inH2o | L2: mmHg | M2: mmH2o
A3: Pa | B3: 1 | C3: 0.001 | D3: 1e-06 | E3: 1e-05 | F3: 0.01 | G3: 0.0001450377 | H3: 1.019716e-05 | I3: 0.1019716 | J3: 0.0002952999 | K3: 248.84 | L3: 0.007500617
A4: kPa | B4: 1000 | C4: 1 | D4: 0.001 | E4: 0.01 | F4: 10 | G4: 0.1450377 | H4: 0.01019716 | I4: 101.9716 | J4: 0.2952999 | K4: 0.24884 | L4: 7.500617
A5: MPa | B5: 1000000 | C5: 1000 | D5: 1 | E5: 10 | F5: 10000 | G5: 145.0377 | H5: 10.19716 | I5: 101971.6 | J5: 295.2999 | L5: 7500.617
A6: bar | B6: 100000 | C6: 100 | D6: 0.1 | E6: 1 | F6: 1000 | G6: 14.50377 | H6: 1.019716 | I6: 10197.16 | J6: 29.52999 | L6: 750.0617
A7: mbar | B7: 100 | C7: 0.1 | D7: 0.0001 | E7: 0.001 | F7: 1 | G7: 0.01450377 | H7: 0.001019716 | I7: 10.19716 | J7: 0.02952999 | L7: 0.7500617
A8: psi | B8: 6894.76 | C8: 6.89476 | D8: 0.006894757 | E8: 0.0689476 | F8: 68.94757 | G8: 1 | H8: 0.070307 | I8: 703.0696 | J8: 2.036021 | K8: 0.0360912 | L8: 51.71493
A9: kgf/cm2 | B9: 98066.5 | C9: 98.0665 | D9: 0.0980665 | E9: 0.980665 | F9: 980.665 | G9: 14.22334 | H9: 1 | I9: 10000 | J9: 28.95903 | L9: 735.5592
A10: kgf/m2 | B10: 9.80665 | C10: 0.00980665 | D10: 9.80665e-06 | E10: 9.80665e-05 | F10: 0.0980665 | G10: 0.001422334 | H10: 0.0001 | I10: 1 | J10: 0.002895903 | L10: 0.07355592
A11: inHg | B11: 3386.39 | C11: 3.38639 | D11: 0.00338639 | E11: 0.03386388 | F11: 33.86388 | G11: 0.4911541 | H11: 0.03453155 | I11: 345.3155 | J11: 1 | L11: 25.4
A12: inH2o | B12: 284.84 | C12: 0.24884 | G12: 0.0360912 | K12: 1
A13: mmHg | B13: 133.322 | C13: 0.133322 | D13: 0.00013332 | E13: 0.001333224 | F13: 1.333224 | G13: 0.01933677 | H13: 0.00135951 | I13: 13.5951 | J13: 0.03937008 | L13: 1
A14: mmH2o | M14: 1

Sheet CURVAS DE AJUSTE (hidden)
B2: MANÓMETRO FLUKE DE 0 a 100 kPa (0 a 15 psi) | N2: MANÓMETRO ADDITEL DE 0 a 345 kPa (0 a 50 psi) | Z2: MANÓMETRO AMETEK DE 0 a 2 068 kPa (0 a 300 psi) | AL2: MANÓMETRO ADDITEL DE 0 a 6 895 kPa (0 a 1 000 psi) | AX2: MANÓMETRO ADDITEL DE 0 a 20 648 kPa (0 a 3 000 psi) | BJ2: MANÓMETRO ADDITEL DE 0 a 34 474 kPa (0 a 5 000 psi) | BV2: MANÓMETRO FLUKE DE 0 a 68948 kPa (0 a 10000 psi) | CH2: MANÓMETRO ADDITEL DE 0 a 24 8211 kPa (0 a 36 000 psi) | CT2: VACUÓMETRO FLUKE DE 0 a -100 kPa (0 a -15 psi) | DF2: VACUÓMETRO AMETEK DE 0 a -100 kPa (0 a -30 inHg)
L4: OK | X4: OK | AJ4: OK | AV4: OK | BH4: OK | BT4: OK | CF4: OK | CR4: OK | DD4: OK | DP4: OK
C5: Resultados de la calibración | I5: Curva de ajuste | O5: Resultados de la calibración | U5: Curva de ajuste | AA5: Resultados de la calibración | AG5: Curva de ajuste | AM5: Resultados de la calibración | AS5: Curva de ajuste | AY5: Resultados de la calibración | BE5: Curva de ajuste | BK5: Resultados de la calibración | BQ5: Curva de ajuste | BW5: Resultados de la calibración | CC5: Curva de ajuste | CI5: Resultados de la calibración | CO5: Curva de ajuste | CU5: Resultados de la calibración | DA5: Curva de ajuste | DG5: Resultados de la calibración | DM5: Curva de ajuste
C6: Lectura Patrón | D6: Lectura IBC | E6: Error de medición | F6: U Expandida | G6: Deriva | H6: Error | I6: Error estimado | J6: Error residual | K6: u Total | O6: Lectura Patrón | P6: Lectura IBC | Q6: Error de medición | R6: U Expandida | S6: Deriva | T6: Error | U6: Error estimado | V6: Error residual | W6: u Total | AA6: Lectura Patrón | AB6: Lectura IBC | AC6: Error de medición | AD6: U Expandida | AE6: Deriva | AF6: Error | AG6: Error estimado | AH6: Error residual | AI6: u Total | AM6: Lectura Patrón | AN6: Lectura IBC | AO6: Error de medición | AP6: U Expandida | AQ6: Deriva | AR6: Error | AS6: Error estimado | AT6: Error residual | AU6: u Total | AY6: Lectura Patrón | AZ6: Lectura IBC | BA6: Error de medición | BB6: U Expandida | BC6: Deriva | BD6: Error | BE6: Error estimado | BF6: Error residual | BG6: U Total | BK6: Lectura Patrón | BL6: Lectura IBC | BM6: Error de medición | BN6: U Expandida | BO6: Deriva | BP6: Error | BQ6: Error estimado | BR6: Error residual | BS6: U Total | BW6: Lectura Patrón | BX6: Lectura IBC | BY6: Error de medición | BZ6: U Expandida | CA6: Deriva | CB6: Error | CC6: Error estimado | CD6: Error residual | CE6: U Total | CI6: Lectura Patrón | CJ6: Lectura IBC | CK6: Error de medición | CL6: U Expandida | CM6: Deriva | CN6: Error | CO6: Error estimado | CP6: Error residual | CQ6: U Total | CU6: Lectura Patrón | CV6: Lectura IBC | CW6: Error de medición | CX6: U Expandida | CY6: Deriva | CZ6: Error | DA6: Error estimado | DB6: Error residual | DC6: U Total | DG6: Lectura Patrón | DH6: Lectura IBC | DI6: Error de medición | DJ6: U Expandida | DK6: Deriva | DL6: Error | DM6: Error estimado | DN6: Error residual | DO6: U Total
H7: Anterior | T7: Anterior | AF7: Anterior | AR7: Anterior | BD7: Anterior | BP7: Anterior | CB7: Anterior | CN7: Anterior | CZ7: Anterior | DL7: Anterior
C8: psi | D8: psi | E8: psi | F8: psi | G8: psi | H8: psi | I8: psi | J8: psi | K8: psi | O8: psi | P8: psi | Q8: psi | R8: psi | S8: psi | T8: psi | U8: psi | V8: psi | W8: psi | AA8: psi | AB8: psi | AC8: psi | AD8: psi | AE8: psi | AF8: psi | AG8: psi | AH8: psi | AI8: psi | AM8: psi | AN8: psi | AO8: psi | AP8: psi | AQ8: psi | AR8: psi | AS8: psi | AT8: psi | AU8: psi | AY8: psi | AZ8: psi | BA8: psi | BB8: psi | BC8: psi | BD8: psi | BE8: psi | BF8: psi | BG8: psi | BK8: psi | BL8: psi | BM8: psi | BN8: psi | BO8: psi | BP8: psi | BQ8: psi | BR8: psi | BS8: psi | BW8: psi | BX8: psi | BY8: psi | BZ8: psi | CA8: psi | CB8: psi | CC8: psi | CD8: psi | CE8: psi | CI8: psi | CJ8: psi | CK8: psi | CL8: psi | CM8: psi | CN8: psi | CO8: psi | CP8: psi | CQ8: psi | CU8: psi | CV8: psi | CW8: psi | CX8: psi | CY8: psi | CZ8: psi | DA8: psi | DB8: psi | DC8: psi | DG8: inHg | DH8: inHg | DI8: inHg | DJ8: inHg | DK8: inHg | DL8: inHg | DM8: inHg | DN8: inHg | DO8: inHg
C9: 1.43902 | D9: 1.4388 | E9: =D9-C9 -> -0.00022 | F9: 0.00054 | G9: =ABS(E9-H9) -> 0.00022 | H9: 0 | I9: =E38 -> 0.0002864043194 | J9: =I9-E9 -> 0.0005064043194 | K9: =SQRT(SUMSQ((F9/2),$J$19)) -> 0.005627278864 | O9: 4.9871 | P9: 4.9875 | Q9: =P9-O9 -> 0.0004 | R9: 0.0012 | S9: =ABS(Q9-T9) -> 0.0004 | T9: 0 | U9: =Q37 -> 0.0005009266086 | V9: =U9-Q9 -> 0.0001009266086 | W9: =SQRT(SUMSQ((R9/2),$V$19)) -> 0.001437246346 | AA9: 30 | AB9: 29.97 | AC9: =AB9-AA9 -> -0.03 | AD9: 0.0083 | AE9: =ABS(AC9-AF9) -> 0.008 | AF9: -0.022 | AG9: =AC36 -> -0.02982253 | AH9: =AG9-AC9 -> 0.00017747 | AI9: =SQRT(SUMSQ((AD9/2),$AH$19)) -> 0.01143578042 | AM9: 99.74 | AN9: 99.75 | AO9: =AN9-AM9 -> 0.01 | AP9: 0.104 | AQ9: =ABS(AO9-AR9) -> 0.02 | AR9: 0.03 | AS9: =AO36 -> 0.0003889240849 | AT9: =AS9-AO9 -> -0.009611075915 | AU9: =SQRT(SUMSQ((AP9/2),$AT$19)) -> 0.1356800151 | AY9: 296.25 | AZ9: 296.2 | BA9: =AZ9-AY9 -> -0.05 | BB9: 0.084 | BC9: =ABS(BA9-BD9) -> 0.03 | BD9: -0.02 | BE9: =BA36 -> -0.05341943234 | BF9: =BE9-BA9 -> -0.003419432338 | BG9: =SQRT(SUMSQ((BB9/2),$BF$19)) -> 0.0530073655 | BK9: 498.66 | BL9: 498.95 | BM9: =BL9-BK9 -> 0.29 | BN9: 0.12 | BO9: =ABS(BM9-BP9) -> 0.39 | BP9: -0.1 | BQ9: =BM36 -> 0.4998135077 | BR9: =BQ9-BM9 -> 0.2098135077 | BS9: =SQRT(SUMSQ((BN9/2),$BR$19)) -> 1.996733172 | BW9: 990.53 | BX9: 990.68 | BY9: =BX9-BW9 -> 0.15 | BZ9: 0.48 | CA9: =ABS(BY9-CB9) -> 0.15 | CB9: 0 | CC9: =BY36 -> 0.2045047165 | CD9: =BY9-CC9 -> -0.05450471648 | CE9: =SQRT(SUMSQ((BZ9/2),$CB$41)) -> 0.5533979122 | CI9: 3615.6 | CJ9: 3616.5 | CK9: 0.94 | CL9: 1.1 | CM9: =ABS(CK9-CN9) -> 0.96 | CN9: 1.9 | CO9: =CK36 -> -0.2099996117 | CP9: =CO9-CK9 -> -1.149999612 | CQ9: =SQRT(SUMSQ((CL9/2),$CP$19)) -> 10.96994426 | CU9: -1.001542 | CV9: -1.0157 | CW9: =CV9-CU9 -> -0.014158 | CX9: 0.0015 | CY9: =ABS(CW9-CZ9) -> 0.015458 | CZ9: 0.0013 | DA9: =CW36 -> 0.07716232204 | DB9: =DA9-CW9 -> 0.09132032204 | DC9: =SQRT(SUMSQ((CX9/2),$DB$19)) -> 0.144009861 | DG9: -2 | DH9: -2.02 | DI9: =DH9-DG9 -> -0.02 | DJ9: 0.0066 | DK9: =ABS(DI9-DL9) -> 0.025 | DL9: 0.005 | DM9: =DI36 -> -0.02591189184 | DN9: =DM9-DI9 -> -0.00591189184 | DO9: =SQRT(SUMSQ((DJ9/2),$DN$19)) -> 0.4823587627
C10: 2.87792 | D10: 2.8778 | E10: -0.00012 | F10: 0.00039 | G10: 8e-05 | H10: -0.0002 | I10: =E39 -> 0.001191862813 | J10: =I10-E10 -> 0.001311862813 | K10: =SQRT(SUMSQ((F10/2),$J$19)) -> 0.005624179266 | O10: 9.9742 | P10: 9.9735 | Q10: =P10-O10 -> -0.0007 | R10: 0.0012 | S10: 0.0007 | T10: 0 | U10: =Q38 -> -0.0003108878728 | V10: 0.0003891121272 | W10: =SQRT(SUMSQ((R10/2),$V$19)) -> 0.001437246346 | AA10: 60.01 | AB10: 59.98 | AC10: -0.03 | AD10: 0.0167 | AE10: 0.006 | AF10: -0.036 | AG10: =AC37 -> -0.03258576631 | AH10: -0.002585766305 | AI10: =SQRT(SUMSQ((AD10/2),$AH$19)) -> 0.01353798633 | AM10: 199.46 | AN10: 199.5 | AO10: 0.04 | AP10: 0.058 | AQ10: 0.01 | AR10: 0.03 | AS10: =AO37 -> 0.003022489327 | AT10: -0.03697751067 | AU10: =SQRT(SUMSQ((AP10/2),$AT$19)) -> 0.1286315144 | AY10: 592.75 | AZ10: 592.6 | BA10: -0.15 | BB10: 0.086 | BC10: 0.11 | BD10: -0.04 | BE10: =BA37 -> -0.1539647891 | BF10: -0.003964789145 | BG10: =SQRT(SUMSQ((BB10/2),$BF$19)) -> 0.05380316717 | BK10: 997.31 | BL10: 997.6 | BM10: 0.29 | BN10: 0.09 | BO10: 0.44 | BP10: -0.15 | BQ10: =BM37 -> 0.6763431956 | BR10: 0.3863431956 | BS10: =SQRT(SUMSQ((BN10/2),$BR$19)) -> 1.996338739 | BW10: 1988.51 | BX10: 1988.63 | BY10: 0.12 | BZ10: 0.48 | CA10: 0.12 | CB10: 0 | CC10: =BY37 -> 0.19327888 | CD10: =BY10-CC10 -> -0.07327887995 | CE10: =SQRT(SUMSQ((BZ10/2),$CB$41)) -> 0.5533979122 | CI10: 7229.4 | CJ10: 7232 | CK10: 2.57 | CL10: 8.7 | CM10: 1.33 | CN10: 3.9 | CO10: =CK37 -> 0.5537102282 | CP10: -2.016289772 | CQ10: =SQRT(SUMSQ((CL10/2),$CP$19)) -> 11.78811592 | CU10: -2.01545 | CV10: -2.0162 | CW10: -0.00075 | CX10: 0.0016 | CY10: 0.00185 | CZ10: 0.0011 | DA10: =CW37 -> 0.08909031895 | DB10: 0.08984031895 | DC10: =SQRT(SUMSQ((CX10/2),$DB$19)) -> 0.1440101301 | DG10: -4.001 | DH10: -4.02 | DI10: -0.019 | DJ10: 0.0065 | DK10: 0.006 | DL10: -0.025 | DM10: =DI37 -> -0.04197692516 | DN10: -0.02297692516 | DO10: =SQRT(SUMSQ((DJ10/2),$DN$19)) -> 0.4823584232
C11: 4.49668 | D11: 4.4971 | E11: 0.00042 | F11: 0.00025 | G11: 0.00028 | H11: 0.0007 | I11: 0.001894140449 | J11: =I11-E11 -> 0.001474140449 | K11: 0.005622187511 | O11: 14.9613 | P11: 14.961 | Q11: -0.0003 | R11: 0.001 | S11: 0.0003 | T11: 0 | U11: 4.883846673e-06 | V11: 0.0003048838467 | W11: 0.00139845524 | AA11: 90.01 | AB11: 89.96 | AC11: -0.05 | AD11: 0.0134 | AE11: 0.012 | AF11: -0.038 | AG11: -0.0386787949 | AH11: 0.0113212051 | AI11: 0.01258747687 | AM11: 299.17 | AN11: 299.2 | AO11: 0.03 | AP11: 0.059 | AQ11: 0.02 | AR11: 0.01 | AS11: 0.00561281463 | AT11: -0.02438718537 | AU11: 0.1287451611 | AY11: 896.47 | AZ11: 896.3 | BA11: -0.17 | BB11: 0.09 | BC11: 0.13 | BD11: -0.04 | BE11: -0.1783661872 | BF11: -0.008366187174 | BG11: =SQRT(SUMSQ((BB11/2),$BF$19)) -> 0.05541462621 | BK11: 1489.46 | BL11: 1489.6 | BM11: 0.14 | BN11: 0.11 | BO11: 0.38 | BP11: -0.24 | BQ11: 0.7708937148 | BR11: 0.6308937148 | BS11: 1.996589182 | BW11: 2986.48 | BX11: 2986.38 | BY11: -0.1 | BZ11: 0.49 | CA11: 0.1 | CB11: 0 | CC11: 0.09235416958 | CD11: -0.1923541696 | CE11: 0.5555846013 | CI11: 10844 | CJ11: 10848 | CK11: 3.97 | CL11: 10.5 | CM11: 1.63 | CN11: 5.6 | CO11: -0.08252946051 | CP11: -4.052529461 | CQ11: 12.14906075 | CU11: -3.01549 | CV11: -3.0162 | CW11: -0.00071 | CX11: 0.0015 | CY11: 0.00181 | CZ11: 0.0011 | DA11: 0.0916223942 | DB11: 0.0923323942 | DC11: 0.144009861 | DG11: -6.002 | DH11: -6.02 | DI11: -0.018 | DJ11: 0.0066 | DK11: 0.011 | DL11: -0.029 | DM11: -0.06444719761 | DN11: -0.04644719761 | DO11: 0.4823587627
C12: 5.93551 | D12: 5.93555 | E12: 4e-05 | F12: 0.00034 | G12: 0.00046 | H12: 0.0005 | I12: 0.002392747339 | J12: 0.002352747339 | K12: 0.005623367978 | O12: 19.9484 | P12: 19.9485 | Q12: 0.0001 | R12: 0.0014 | S12: 0.0009 | T12: 0.001 | U12: 0.0005249875342 | V12: 0.0004249875342 | W12: 0.001481781718 | AA12: 120 | AB12: 119.97 | AC12: -0.03 | AD12: 0.0174 | AE12: 0.018 | AF12: -0.048 | AG12: -0.04718992 | AH12: -0.01718992 | AI12: 0.01375661928 | AM12: 398.89 | AN12: 398.95 | AO12: 0.06 | AP12: 0.105 | AQ12: 0.03 | AR12: 0.03 | AS12: 0.005849257465 | AT12: -0.05415074253 | AU12: 0.1358724273 | AY12: 1192.97 | AZ12: 1192.8 | BA12: -0.17 | BB12: 0.095 | BC12: 0.18 | BD12: 0.01 | BE12: -0.1826874225 | BF12: -0.01268742253 | BG12: 0.05746329957 | BK12: 1988.44 | BL12: 1988.48 | BM12: 0.04 | BN12: 0.2 | BO12: 0.45 | BP12: -0.41 | BQ12: 0.8499931043 | BR12: 0.8099931043 | BS12: 1.998335148 | BW12: 3984.43 | BX12: 3984.13 | BY12: -0.3 | BZ12: 0.5 | CA12: 0.3 | CB12: 0 | CC12: -0.1188219223 | CD12: -0.1811780777 | CE12: 0.5578075378 | CI12: 14458.5 | CJ12: 14460 | CK12: 1.51 | CL12: 10.7 | CM12: 1.59 | CN12: 3.1 | CO12: -1.664048072 | CP12: -3.174048072 | CQ12: 12.19260747 | CU12: -4.01553 | CV12: -4.01585 | CW12: -0.00032 | CX12: 0.0015 | CY12: 0.00152 | CZ12: 0.0012 | DA12: 0.09118393044 | DB12: 0.09150393044 | DC12: 0.144009861 | DG12: -8.003 | DH12: -8.005 | DI12: -0.002 | DJ12: 0.013 | DK12: 0.035 | DL12: -0.037 | DM12: -0.09481096222 | DN12: -0.09281096222 | DO12: 0.4823912685
C13: 7.37434 | D13: 7.3743 | E13: -4e-05 | F13: 0.00055 | G13: 0.00036 | H13: -0.0004 | I13: 0.00292822867 | J13: 0.00296822867 | K13: 0.005627520983 | O13: 24.9353 | P13: 24.9355 | Q13: 0.0002 | R13: 0.0015 | S13: 0.0008 | T13: 0.001 | U13: 0.0009317985907 | V13: 0.0007317985907 | W13: 0.001506046832 | AA13: 150 | AB13: 149.94 | AC13: -0.06 | AD13: 0.0138 | AE13: 0.012 | AF13: -0.072 | AG13: -0.05721625 | AH13: 0.00278375 | AI13: 0.012695061 | AM13: 498.64 | AN13: 498.7 | AO13: 0.06 | AP13: 0.062 | AQ13: 0.03 | AR13: 0.03 | AS13: 0.001351462774 | AT13: -0.05864853723 | AU13: 0.1290971204 | AY13: 1489.47 | AZ13: 1489.3 | BA13: -0.17 | BB13: 0.101 | BC13: 0.18 | BD13: 0.01 | BE13: -0.1907357989 | BF13: -0.02073579892 | BG13: 0.05996691419 | BK13: 2487.42 | BL13: 2487.33 | BM13: -0.09 | BN13: 0.27 | BO13: 0.48 | BP13: -0.57 | BQ13: 0.9456598718 | BR13: 1.035659872 | BS13: 2.000392052 | BW13: 4982.37 | BX13: 4981.7 | BY13: -0.67 | BZ13: 0.53 | CA13: 0.67 | CB13: 0 | CC13: -0.4304703842 | CD13: -0.2395296158 | CE13: 0.5646895158 | CI13: 18072.8 | CJ13: 18075.5 | CK13: 2.67 | CL13: 10 | CM13: 1.93 | CN13: 4.6 | CO13: -3.76954573 | CP13: -6.43954573 | CQ13: 12.04313817 | CU13: -5.01559 | CV13: -5.0147 | CW13: 0.00089 | CX13: 0.0015 | CY13: 0.00091 | CZ13: 0.0018 | DA13: 0.0906848616 | DB13: 0.0897948616 | DC13: 0.144009861 | DG13: -10.004 | DH13: -10.01 | DI13: -0.006 | DJ13: 0.0068 | DK13: 0.026 | DL13: -0.032 | DM13: -0.1348248052 | DN13: -0.1288248052 | DO13: 0.4823594572
C14: 8.99295 | D14: 8.9931 | E14: 0.00015 | F14: 0.00058 | G14: 0.00095 | H14: -0.0008 | I14: 0.003708035661 | J14: 0.003558035661 | K14: 0.005628273928 | O14: 29.9223 | P14: 29.9225 | Q14: 0.0002 | R14: 0.0016 | S14: 0.0008 | T14: 0.001 | U14: 0.001282593897 | V14: 0.001082593897 | W14: 0.001531560335 | AA14: 180 | AB14: 179.92 | AC14: -0.08 | AD14: 0.015 | AE14: 0 | AF14: -0.08 | AG14: -0.06784648 | AH14: 0.01215352 | AI14: 0.01303090841 | AM14: 598.37 | AN14: 598.45 | AO14: 0.08 | AP14: 0.107 | AQ14: 0.08 | AR14: 0 | AS14: -0.009710118561 | AT14: -0.08971011856 | AU14: 0.1362619407 | AY14: 1793.2 | AZ14: 1793 | BA14: -0.2 | BB14: 0.109 | BC14: 0.38 | BD14: 0.18 | BE14: -0.2045300035 | BF14: -0.004530003507 | BG14: 0.06337216106 | BK14: 2986.4 | BL14: 2986.3 | BM14: -0.1 | BN14: 0.22 | BO14: 0.39 | BP14: -0.49 | BQ14: 1.067968713 | BR14: 1.167968713 | BS14: 1.998860516 | BW14: 5980.31 | BX14: 5979.25 | BY14: -1.06 | BZ14: 0.53 | CA14: 1.06 | CB14: 0 | CC14: -0.812560127 | CD14: -0.247439873 | CE14: 0.5646895158 | CI14: 21687 | CJ14: 21687 | CK14: -0.01 | CL14: 9.5 | CM14: 0.81 | CN14: 0.8 | CO14: -6.079315329 | CP14: -6.069315329 | CQ14: 11.94151067 | CU14: -6.01564 | CV14: -6.01575 | CW14: -0.00011 | CX14: 0.0015 | CY14: 0.00141 | CZ14: 0.0013 | DA14: 0.09082609328 | DB14: 0.09093609328 | DC14: 0.144009861 | DG14: -12.006 | DH14: -12 | DI14: 0.006 | DJ14: 0.0068 | DK14: 0.009 | DL14: -0.003 | DM14: -0.1862686322 | DN14: -0.1922686322 | DO14: 0.4823594572
C15: 10.43169 | D15: 10.4324 | E15: 0.00071 | F15: 0.0007 | G15: 0.00071 | H15: 0 | I15: 0.004578440866 | J15: 0.003868440866 | K15: 0.005631684243 | O15: 34.9097 | P15: 34.911 | Q15: 0.0013 | R15: 0.0017 | S15: 0.0017 | T15: 0.003 | U15: 0.00177875393 | V15: 0.0004787539305 | W15: 0.001558260909 | AA15: 209.99 | AB15: 209.92 | AC15: -0.07 | AD15: 0.016 | AE15: 0.013 | AF15: -0.083 | AG15: -0.07816849996 | AH15: -0.008168499963 | AI15: 0.01332496056 | AM15: 698.09 | AN15: 698.15 | AO15: 0.06 | AP15: 0.109 | AQ15: 0.03 | AR15: 0.03 | AS15: -0.02800270888 | AT15: -0.08800270888 | AU15: 0.1366576617 | AY15: 2089.69 | AZ15: 2089.5 | BA15: -0.19 | BB15: 0.119 | BC15: 0.28 | BD15: 0.09 | BE15: -0.2160138856 | BF15: -0.02601388559 | BG15: 0.0677202392 | BK15: 3485.37 | BL15: 3485.13 | BM15: -0.24 | BN15: 0.2 | BO15: 0.46 | BP15: -0.7 | BQ15: 1.211092794 | BR15: 1.451092794 | BS15: 1.998335148 | BW15: 6978.23 | BX15: 6976.53 | BY15: -1.7 | BZ15: 0.62 | CA15: 1.7 | CB15: 0 | CC15: -1.224869077 | CD15: -0.4751309234 | CE15: 0.5871535142 | CI15: 25301.1 | CJ15: 25301.5 | CK15: 0.44 | CL15: 9 | CM15: 2.26 | CN15: 2.7 | CO15: -8.442681522 | CP15: -8.882681522 | CQ15: 11.84428879 | CU15: -7.01569 | CV15: -7.0163 | CW15: -0.00061 | CX15: 0.0015 | CY15: 0.00181 | CZ15: 0.0012 | DA15: 0.09113643103 | DB15: 0.09174643103 | DC15: 0.144009861 | DG15: -14.007 | DH15: -13.99 | DI15: 0.017 | DJ15: 0.0067 | DK15: 0.004 | DL15: 0.013 | DM15: -0.2505633306 | DN15: -0.2675633306 | DO15: 0.4823591074
C16: 11.87043 | D16: 11.8713 | E16: 0.00087 | F16: 0.00084 | G16: 0.00037 | H16: 0.0005 | I16: 0.005491252993 | J16: 0.004621252993 | K16: 0.005636467636 | O16: 39.8967 | P16: 39.898 | Q16: 0.0013 | R16: 0.0019 | S16: 0.0027 | T16: 0.004 | U16: 0.002534876695 | V16: 0.001234876695 | W16: 0.001614985158 | AA16: 239.99 | AB16: 239.9 | AC16: -0.09 | AD16: 0.0161 | AE16: 0.015 | AF16: -0.105 | AG16: -0.08728062596 | AH16: 0.002719374038 | AI16: 0.01335503927 | AM16: 797.82 | AN16: 797.85 | AO16: 0.03 | AP16: 0.11 | AQ16: 0.01 | AR16: 0.04 | AS16: -0.0524234024 | AT16: -0.0824234024 | AU16: 0.1368578332 | AY16: 2386.19 | AZ16: 2386 | BA16: -0.19 | BB16: 0.138 | BC16: 0.29 | BD16: 0.1 | BE16: -0.2215401142 | BF16: -0.0315401142 | BG16: 0.07620223617 | BK16: 3984.34 | BL16: 3984.05 | BM16: -0.29 | BN16: 0.22 | BO16: 0.52 | BP16: -0.81 | BQ16: 1.361040945 | BR16: 1.651040945 | BS16: 1.998860516 | BW16: 8097 | BX16: 8095.05 | BY16: -1.95 | BZ16: 0.8 | CA16: 1.95 | CB16: 0 | CC16: -1.673483114 | CD16: -0.2765168864 | CE16: 0.6392567944 | CI16: 28915 | CJ16: 28911.5 | CK16: -3.46 | CL16: 7.9 | CM16: 2.66 | CN16: -0.8 | CO16: -10.94553359 | CP16: -7.485533592 | CQ16: 11.64644482 | CU16: -8.01573 | CV16: -8.0162 | CW16: -0.00047 | CX16: 0.0015 | CY16: 0.00097 | CZ16: 0.0005 | DA16: 0.09100968002 | DB16: 0.09147968002 | DC16: 0.144009861 | DG16: -16.008 | DH16: -16 | DI16: 0.008 | DJ16: 0.0066 | DK16: 0.011 | DL16: 0.019 | DM16: -0.3286499135 | DN16: -0.3366499135 | DO16: 0.4823587627
C17: 13.48894 | D17: 13.4898 | E17: 0.00086 | F17: 0.001 | G17: 0.00106 | H17: -0.0002 | I17: 0.006181546341 | J17: 0.005321546341 | K17: 0.005642992771 | O17: 44.8838 | P17: 44.886 | Q17: 0.0022 | R17: 0.002 | S17: 0.0028 | T17: 0.005 | U17: 0.003348239929 | V17: 0.001148239929 | W17: 0.00164489424 | AA17: 269.99 | AB17: 269.9 | AC17: -0.09 | AD17: 0.0189 | AE17: 0.023 | AF17: -0.113 | AG17: -0.0942704949 | AH17: -0.004270494902 | AI17: 0.01424279024 | AM17: 897.55 | AN17: 897.6 | AO17: 0.05 | AP17: 0.072 | AQ17: 0.02 | AR17: 0.03 | AS17: -0.0794743111 | AT17: -0.1294743111 | AU17: 0.1303881379 | AY17: 2689.91 | AZ17: 2689.7 | BA17: -0.21 | BB17: 0.159 | BC17: 0.28 | BD17: 0.07 | BE17: -0.2331618845 | BF17: -0.02316188454 | BG17: 0.08582558358 | BK17: 4483.3 | BL17: 4483 | BM17: -0.3 | BN17: 0.27 | BO17: 0.51 | BP17: -0.81 | BQ17: 1.503374823 | BR17: 1.803374823 | BS17: 2.000392052 | BW17: 9109.13 | BX17: 9106.58 | BY17: -2.55 | BZ17: 0.9 | CA17: 2.55 | CB17: 0 | CC17: -2.033845626 | CD17: -0.5161543742 | CE17: 0.6716764468 | CI17: 32528.7 | CJ17: 32525.5 | CK17: -3.23 | CL17: 7.2 | CM17: 2.53 | CN17: -0.7 | CO17: -13.9779495 | CP17: -10.7479495 | CQ17: 11.5324402 | CU17: -9.01574 | CV17: -9.01545 | CW17: 0.00029 | CX17: 0.0014 | CY17: 0.00151 | CZ17: 0.0018 | DA17: 0.09074166862 | DB17: 0.09045166862 | DC17: 0.1440096093 | DG17: -19.009 | DH17: -19 | DI17: 0.009 | DJ17: 0.0067 | DK17: 0.001 | DL17: 0.01 | DM17: -0.4715193274 | DN17: -0.4805193274 | DO17: 0.4823591074
C18: 14.38813 | D18: 14.38875 | E18: 0.00062 | F18: 0.0011 | G18: 0.00032 | H18: 0.0003 | I18: 0.006149725268 | J18: 0.005529725268 | K18: 0.005647642642 | O18: 49.8708 | P18: 49.873 | Q18: 0.0022 | R18: 0.0021 | S18: 0.0028 | T18: 0.005 | U18: 0.003467842976 | V18: 0.001267842976 | W18: 0.001675761636 | AA18: 300 | AB18: 299.9 | AC18: -0.1 | AD18: 0.016 | AE18: 0.01 | AF18: -0.11 | AG18: -0.09823 | AH18: 0.00177 | AI18: 0.01332496056 | AM18: 997.28 | AN18: 997.3 | AO18: 0.02 | AP18: 0.076 | AQ18: 0.06 | AR18: -0.04 | AS18: -0.1026550921 | AT18: -0.1226550921 | AU18: 0.1309544444 | AY18: 3000.86 | AZ18: 3000.6 | BA18: -0.26 | BB18: 0.18 | BC18: 0.37 | BD18: 0.11 | BE18: -0.2955848157 | BF18: -0.03558481572 | BG18: 0.09563357568 | BK18: 4982.26 | BL18: 4981.85 | BM18: -0.41 | BN18: 0.27 | BO18: 0.41 | BP18: -0.82 | BQ18: 1.63094719 | BR18: 2.04094719 | BS18: 2.000392052 | BW18: 9976.66 | BX18: 9973.88 | BY18: -2.78 | BZ18: 1.08 | CA18: 2.78 | CB18: 0 | CC18: -2.301247906 | CD18: -0.4787520942 | CE18: 0.7350164959 | CI18: 36142.4 | CJ18: 36135 | CK18: -7.37 | CL18: 6.7 | CM18: 3.37 | CN18: -4 | CO18: -18.30184376 | CP18: -10.93184376 | CQ18: 11.45686157 | CU18: -10.01572 | CV18: -10.0145 | CW18: 0.00122 | CX18: 0.0015 | CY18: 0.00178 | CZ18: 0.003 | DA18: 0.09256687609 | DB18: 0.09134687609 | DC18: 0.144009861 | DG18: -22.51 | DH18: -22.51 | DI18: 0 | DJ18: 0.0062 | DK18: 0.019 | DL18: -0.019 | DM18: -0.6707585675 | DN18: -0.6707585675 | DO18: 0.4823574359
H19: Error Típico | J19: =SQRT(SUMSQ(J9:J18)/(10-F26-1)) -> 0.005620797756 | T19: Error Típico | V19: =SQRT((T39)/(COUNT(O9:O18)-T22-1)) -> 0.001306015719 | AF19: Error Típico | AH19: =SQRT(SUMSQ(AH9:AH18)/(10-AF22-1)) -> 0.01065619885 | AR19: Error Típico | AT19: =SQRT(SUMSQ(AT9:AT18)/(10-AR22-1)) -> 0.1253198567 | BD19: Error Típico | BF19: =SQRT(SUMSQ(BF9:BF18)/(10-BD22-1)) -> 0.03233853425 | BP19: Error Típico | BR19: =SQRT(SUMSQ(BR9:BR18)/(10-BQ22-1)) -> 1.995831496 | CB19: Error Típico | CD19: =SQRT(SUMSQ(CD9:CD18)/(10-CC22-1)) -> 0.4986474197 | CN19: Error Típico | CP19: =SQRT(SUMSQ(CP9:CP18)/(10-CO22-1)) -> 10.95614791 | CZ19: Error Típico | DB19: =SQRT(SUMSQ(DB9:DB18)/(10-DA21-1)) -> 0.144007908 | DL19: Error Típico | DN19: =SQRT(SUMSQ(DN9:DN18)/(10-DL21-1)) -> 0.4823474743
CX21: Especificación | DA21: =5-COUNTIF(COEFICIENTES_Fluke_Menos_15,0) -> 5 | DJ21: Especificación | DL21: =5-COUNTIF(DM22:DM27,0) -> 5
R22: Especificación | T22: =5-COUNTIF(COEFICIENTES_50,0) -> 5 | AD22: Especificación | AF22: =5-COUNTIF(COEFICIENTES_300,0) -> 3 | AP22: Especificación | AR22: =5-COUNTIF(COEFICIENTES_1000,0) -> 5 | BA22: Especificación | BD22: =5-COUNTIF(COEFICIENTES_3000,0) -> 5 | BN22: Especificación | BQ22: =5-COUNTIF(COEFICIENTES_5000,0) -> 5 | BZ22: Especificación | CC22: =5-COUNTIF(COEFICIENTES_10000,0) -> 5 | CL22: Especificación | CO22: =5-COUNTIF(COEFICIENTES_36000,0) -> 5 | CX22: =0.05%*-15 -> -0.0075 | DA22: a0 (intercepto) | DB22: 0.0455 | DJ22: =0.1%*-22.5 -> -0.0225 | DL22: a0 (intercepto) | DM22: -0.01531
R23: =0.025%*50 -> 0.0125 | T23: a0 (intercepto) | U23: 0.0042 | AD23: =0.5%*300 -> 1.5 | AF23: a0 (intercepto) | AG23: -0.0313 | AP23: =0.025%*1000 -> 0.25 | AR23: a0 (intercepto) | AS23: -0.0006565 | BA23: =0.025%*3000 -> 0.75 | BD23: a0 (intercepto) | BE23: 0.2249 | BN23: =0.025%*5000 -> 1.25 | BQ23: a0 (intercepto) | BR23: 0.139 | BZ23: =0.02%*10000 -> 2 | CC23: a0 (intercepto) | CD23: 0.187 | CL23: =0.1%*36000 -> 36 | CO23: a0 (intercepto) | CP23: -2.796 | CX23: =-CX22 -> 0.0075 | DA23: a1 | DB23: 0.9537 | DJ23: =-DJ22 -> 0.0225 | DL23: a1 | DM23: 1.004
R24: =-R23 -> -0.0125 | T24: a1 | U24: 0.9988 | AD24: =-AD23 -> -1.5 | AF24: a1 | AG24: 1.00013 | AP24: =-AP23 -> -0.25 | AR24: a1 | AS24: 1 | BA24: =-BA23 -> -0.75 | BD24: a1 | BE24: 0.9986 | BN24: =-BN23 -> -1.25 | BQ24: a1 | BR24: 1.001 | BZ24: =-BZ23 -> -2 | CC24: a1 | CD24: 1 | CL24: =-CL23 -> -36 | CO24: a1 | CP24: 1.001 | DA24: a2 | DB24: -0.01754 | DL24: a2 | DM24: -0.0006541
T25: a2 | U25: 0.0001127 | AF25: a2 | AG25: -2.86e-06 | AR25: a2 | AS25: 1.048e-07 | BD25: a2 | BE25: 1.884e-06 | BQ25: a2 | BR25: -6.629e-07 | CC25: a2 | CD25: 3.848e-08 | CO25: a2 | CP25: -8.247e-08 | DA25: a3 | DB25: -0.003129 | DL25: a3 | DM25: -7.193e-06
D26: Especificación | F26: =5-COUNTIF(COEFICIENTES_15,0) -> 5 | T26: a3 | U26: -4.593e-06 | AF26: a3 | AG26: 5.61e-09 | AR26: a3 | AS26: 7.791e-11 | BD26: a3 | BE26: -1.219e-09 | BQ26: a3 | BR26: 2.354e-10 | CC26: a3 | CD26: -2.327e-11 | CO26: a3 | CP26: 8.886e-13 | DA26: a4 | DB26: -0.0002655 | DL26: a4 | DM26: -2.832e-06
D27: =0.025%*15 -> 0.00375 | F27: a0 (intercepto) | G27: -0.0009719 | T27: a4 | U27: 8.743e-08 | AF27: a4 | AG27: 0 | AR27: a4 | AS27: -8.039e-13 | BD27: a4 | BE27: 3.735e-13 | BQ27: a4 | BR27: -3.658e-14 | CC27: a4 | CD27: 2.541e-15 | CO27: a4 | CP27: 4.131e-17 | DA27: a5 | DB27: -8.64e-06 | DL27: a5 | DM27: -7.113e-08
D28: =-D27 -> -0.00375 | F28: a1 | G28: 1.001 | T28: a5 | U28: -6.234e-10 | AF28: a5 | AG28: 0 | AR28: a5 | AS28: 5.187e-16 | BD28: a5 | BE28: -4.369e-17 | BQ28: a5 | BR28: 2.082e-18 | CC28: a5 | CD28: -8.483e-20 | CO28: a5 | CP28: -9.139e-22
F29: a2 | G29: -8.349e-05
F30: a3 | G30: -4.555e-06
F31: a4 | G31: 1.428e-06
F32: a5 | G32: -6.1e-08
AB33: Valor Nominal | AC33: Error | AD33: Residual | AN33: Valor Nominal | AO33: Error | AP33: Residual | AZ33: Valor Nominal | BA33: Error | BB33: Residual | BL33: Valor Nominal | BM33: Error | BN33: Residual | BX33: Valor Nominal | BY33: Error | BZ33: Residual | CJ33: Valor Nominal | CK33: Error | CL33: Residual | CV33: Valor Nominal | CW33: Error | CX33: Residual | DH33: Valor Nominal | DI33: Error | DJ33: Residual
P34: Valor Nominal | Q34: Error | R34: Residual
D35: Valor Nominal | E35: Error | F35: Residual | AB35: psi | AC35: psi | AD35: psi | AN35: psi | AO35: psi | AP35: psi | AZ35: psi | BA35: psi | BB35: psi | BL35: psi | BM35: psi | BN35: psi | BX35: psi | BY35: psi | BZ35: psi | CJ35: psi | CK35: psi | CL35: psi | CV35: psi | CW35: psi | CX35: psi | DH35: psi | DI35: psi | DJ35: psi
P36: psi | Q36: psi | R36: psi | AB36: =($AG$28*AA9^5+$AG$27*AA9^4+$AG$26*AA9^3+$AG$25*AA9^2+$AG$24*AA9+$AG$23) -> 29.97017747 | AC36: =AB36-AA9 -> -0.02982253 | AD36: =AC9-AC36 -> -0.00017747 | AN36: =($AS$28*AM9^5+$AS$27*AM9^4+$AS$26*AM9^3+$AS$25*AM9^2+$AS$24*AM9+$AS$23) -> 99.74038892 | AO36: =AN36-AM9 -> 0.0003889240849 | AP36: =AO9-AO36 -> 0.009611075915 | AZ36: =($BE$28*AY9^5+$BE$27*AY9^4+$BE$26*AY9^3+$BE$25*AY9^2+$BE$24*AY9+$BE$23) -> 296.1965806 | BA36: =AZ36-AY9 -> -0.05341943234 | BB36: =BA9-BA36 -> 0.003419432338 | BL36: =($BR$28*BK9^5+$BR$27*BK9^4+$BR$26*BK9^3+$BR$25*BK9^2+$BR$24*BK9+$BR$23) -> 499.1598135 | BM36: =BL36-BK9 -> 0.4998135077 | BN36: =BM9-BM36 -> -0.2098135077 | BX36: =($CD$28*BW9^5+$CD$27*BW9^4+$CD$26*BW9^3+$CD$25*BW9^2+$CD$24*BW9+$CD$23) -> 990.7345047 | BY36: =BX36-BW9 -> 0.2045047165 | BZ36: =BY9-BY36 -> -0.05450471648 | CJ36: =($CP$28*CI9^5+$CP$27*CI9^4+$CP$26*CI9^3+$CP$25*CI9^2+$CP$24*CI9+$CP$23) -> 3615.39 | CK36: =CJ36-CI9 -> -0.2099996117 | CL36: =CK9-CK36 -> 1.149999612 | CV36: =($DB$27*CU9^5+$DB$26*CU9^4+$DB$25*CU9^3+$DB$24*CU9^2+$DB$23*CU9+$DB$22) -> -0.924379678 | CW36: =CV36-CU9 -> 0.07716232204 | CX36: =CW9-CW36 -> -0.09132032204 | DH36: =($DM$27*DG9^5+$DM$26*DG9^4+$DM$25*DG9^3+$DM$24*DG9^2+$DM$23*DG9+$DM$22) -> -2.025911892 | DI36: =DH36-DG9 -> -0.02591189184 | DJ36: =DI9-DI36 -> 0.00591189184
D37: psi | E37: psi | F37: psi | P37: =($U$28*O9^5+$U$27*O9^4+$U$26*O9^3+$U$25*O9^2+$U$24*O9+$U$23) -> 4.987600927 | Q37: =P37-O9 -> 0.0005009266086 | R37: =Q9-Q37 -> -0.0001009266086 | AB37: =($AG$28*AA10^5+$AG$27*AA10^4+$AG$26*AA10^3+$AG$25*AA10^2+$AG$24*AA10+$AG$23) -> 59.97741423 | AC37: =AB37-AA10 -> -0.03258576631 | AD37: =AC10-AC37 -> 0.002585766305 | AF37: Suma | AN37: =($AS$28*AM10^5+$AS$27*AM10^4+$AS$26*AM10^3+$AS$25*AM10^2+$AS$24*AM10+$AS$23) -> 199.4630225 | AO37: =AN37-AM10 -> 0.003022489327 | AP37: =AO10-AO37 -> 0.03697751067 | AR37: Suma | AZ37: =($BE$28*AY10^5+$BE$27*AY10^4+$BE$26*AY10^3+$BE$25*AY10^2+$BE$24*AY10+$BE$23) -> 592.5960352 | BA37: =AZ37-AY10 -> -0.1539647891 | BB37: =BA10-BA37 -> 0.003964789145 | BD37: Suma | BL37: =($BR$28*BK10^5+$BR$27*BK10^4+$BR$26*BK10^3+$BR$25*BK10^2+$BR$24*BK10+$BR$23) -> 997.9863432 | BM37: =BL37-BK10 -> 0.6763431956 | BN37: =BM10-BM37 -> -0.3863431956 | BP37: Suma | BX37: 1988.703279 | BY37: =BX37-BW10 -> 0.19327888 | BZ37: =BY10-BY37 -> -0.07327887995 | CB37: Suma | CJ37: =($CP$28*CI10^5+$CP$27*CI10^4+$CP$26*CI10^3+$CP$25*CI10^2+$CP$24*CI10+$CP$23) -> 7229.95371 | CK37: =CJ37-CI10 -> 0.5537102282 | CL37: =CK10-CK37 -> 2.016289772 | CN37: Suma | CV37: =($DB$27*CU10^5+$DB$26*CU10^4+$DB$25*CU10^3+$DB$24*CU10^2+$DB$23*CU10+$DB$22) -> -1.926359681 | CW37: =CV37-CU10 -> 0.08909031895 | CX37: =CW10-CW37 -> -0.08984031895 | CZ37: Suma | DH37: =($DM$27*DG10^5+$DM$26*DG10^4+$DM$25*DG10^3+$DM$24*DG10^2+$DM$23*DG10+$DM$22) -> -4.042976925 | DI37: =DH37-DG10 -> -0.04197692516 | DJ37: =DI10-DI37 -> 0.02297692516 | DL37: Suma
D38: =($G$32*C9^5+$G$31*C9^4+$G$30*C9^3+$G$29*C9^2+$G$28*C9+$G$27) -> 1.439306404 | E38: =D38-C9 -> 0.0002864043194 | F38: =E9-E38 -> -0.0005064043194 | P38: =($U$28*O10^5+$U$27*O10^4+$U$26*O10^3+$U$25*O10^2+$U$24*O10+$U$23) -> 9.973889112 | Q38: =P38-O10 -> -0.0003108878728 | R38: =Q10-Q38 -> -0.0003891121272 | T38: Suma | AB38: 89.97132121 | AC38: -0.0386787949 | AD38: -0.0113212051 | AF38: =SUMSQ(AD36:AD45) -> 0.0006813274434 | AN38: 299.1756128 | AO38: 0.00561281463 | AP38: 0.02438718537 | AR38: =SUMSQ(AP36:AP45) -> 0.06282026598 | AZ38: 896.2916338 | BA38: -0.1783661872 | BB38: 0.008366187174 | BD38: =SUMSQ(BB36:BB45) -> 0.00418312319 | BL38: 1490.230894 | BM38: 0.7708937148 | BN38: -0.6308937148 | BP38: =SUMSQ(BN36:BN45) -> 15.93337345 | BX38: 2986.572354 | BY38: 0.09235416958 | BZ38: -0.1923541696 | CB38: =SUMSQ(BZ36:BZ45) -> 0.9945969968 | CJ38: 10843.91747 | CK38: -0.08252946051 | CL38: 4.052529461 | CN38: =SUMSQ(CL36:CL45) -> 480.148708 | CV38: -2.923867606 | CW38: 0.0916223942 | CX38: -0.0923323942 | CZ38: =SUMSQ(CX36:CX45) -> 0.08295311025 | DH38: -6.066447198 | DI38: -0.06444719761 | DJ38: 0.04644719761 | DL38: =SUMSQ(DJ36:DJ45) -> 0.9306363438
D39: =($G$32*C10^5+$G$31*C10^4+$G$30*C10^3+$G$29*C10^2+$G$28*C10+$G$27) -> 2.879111863 | E39: =D39-C10 -> 0.001191862813 | F39: =E10-E39 -> -0.001311862813 | H39: Suma | P39: 14.96130488 | Q39: 4.883846673e-06 | R39: -0.0003048838467 | T39: =SUMSQ(R37:R46) -> 6.822708238e-06 | AB39: 119.9528101 | AC39: -0.04718992 | AD39: 0.01718992 | AN39: 398.8958493 | AO39: 0.005849257465 | AP39: 0.05415074253 | AZ39: 1192.787313 | BA39: -0.1826874225 | BB39: 0.01268742253 | BL39: 1989.289993 | BM39: 0.8499931043 | BN39: -0.8099931043 | BX39: 3984.311178 | BY39: -0.1188219223 | BZ39: -0.1811780777 | CJ39: 14456.83595 | CK39: -1.664048072 | CL39: 3.174048072 | CV39: -3.92434607 | CW39: 0.09118393044 | CX39: -0.09150393044 | DH39: -8.097810962 | DI39: -0.09481096222 | DJ39: 0.09281096222
D40: 4.49857414 | E40: 0.001894140449 | F40: -0.001474140449 | H40: =SUMSQ(F38:F47) -> 0.0001263734696 | P40: 19.94892499 | Q40: 0.0005249875342 | R40: -0.0004249875342 | AB40: 149.9427837 | AC40: -0.05721625 | AD40: -0.00278375 | AF40: u pol | AN40: 498.6413515 | AO40: 0.001351462774 | AP40: 0.05864853723 | AR40: u pol | AZ40: 1489.279264 | BA40: -0.1907357989 | BB40: 0.02073579892 | BD40: u pol | BL40: 2488.36566 | BM40: 0.9456598718 | BN40: -1.035659872 | BP40: u pol | BX40: 4981.93953 | BY40: -0.4304703842 | BZ40: -0.2395296158 | CB40: u pol | CJ40: 18069.03045 | CK40: -3.76954573 | CL40: 6.43954573 | CN40: u pol | CV40: -4.924905138 | CW40: 0.0906848616 | CX40: -0.0897948616 | CZ40: u pol | DH40: -10.13882481 | DI40: -0.1348248052 | DJ40: 0.1288248052 | DL40: u pol
D41: 5.937902747 | E41: 0.002392747339 | F41: -0.002352747339 | P41: 24.9362318 | Q41: 0.0009317985907 | R41: -0.0007317985907 | T41: u pol | AB41: 179.9321535 | AC41: -0.06784648 | AD41: -0.01215352 | AF41: =SQRT((AF38)/(COUNT(AA7:AA16)-AD24-1)) -> 0.008952997811 | AN41: 598.3602899 | AO41: -0.009710118561 | AP41: 0.08971011856 | AR41: =SQRT((AR38)/(COUNT(AM7:AM16)-AP24-1)) -> 0.09308525272 | AZ41: 1792.99547 | BA41: -0.2045300035 | BB41: 0.004530003507 | BD41: =SQRT((BD38)/(COUNT(AY7:AY16)-BB24-1)) -> 0.02444563411 | BL41: 2987.467969 | BM41: 1.067968713 | BN41: -1.167968713 | BP41: =SQRT((BP38)/(COUNT(BK7:BK16)-BN24-1)) -> 1.389718674 | BX41: 5979.49744 | BY41: -0.812560127 | BZ41: -0.247439873 | CB41: =SQRT((CB38)/(COUNT(BW9:BW18)-CC22-1)) -> 0.4986474197 | CJ41: 21680.92068 | CK41: -6.079315329 | CL41: 6.069315329 | CN41: =SQRT((CN38)/(COUNT(CI9:CI18)-CO22-1)) -> 10.95614791 | CV41: -5.924813907 | CW41: 0.09082609328 | CX41: -0.09093609328 | CZ41: =SQRT((CZ38)/(COUNT(CU9:CU18)-DA21-1)) -> 0.144007908 | DH41: -12.19226863 | DI41: -0.1862686322 | DJ41: 0.1922686322 | DL41: =SQRT((DL38)/(COUNT(DG9:DG18)-DL21-1)) -> 0.4823474743
D42: 7.377268229 | E42: 0.00292822867 | F42: -0.00296822867 | H42: u pol | P42: 29.92358259 | Q42: 0.001282593897 | R42: -0.001082593897 | T42: =SQRT((T39)/(COUNT(O8:O17)-R25-1)) -> 0.0009234925716 | AB42: 209.9118315 | AC42: -0.07816849996 | AD42: 0.008168499963 | AN42: 698.0619973 | AO42: -0.02800270888 | AP42: 0.08800270888 | AZ42: 2089.473986 | BA42: -0.2160138856 | BB42: 0.02601388559 | BL42: 3486.581093 | BM42: 1.211092794 | BN42: -1.451092794 | BX42: 6977.005131 | BY42: -1.224869077 | BZ42: -0.4751309234 | CJ42: 25292.65732 | CK42: -8.442681522 | CL42: 8.882681522 | CV42: -6.924553569 | CW42: 0.09113643103 | CX42: -0.09174643103 | DH42: -14.25756333 | DI42: -0.2505633306 | DJ42: 0.2675633306
D43: 8.996658036 | E43: 0.003708035661 | F43: -0.003558035661 | H43: =SQRT((H40)/(COUNT(C9:C18)-F26-1)) -> 0.005620797756 | P43: 34.91147875 | Q43: 0.00177875393 | R43: -0.0004787539305 | AB43: 239.9027194 | AC43: -0.08728062596 | AD43: -0.002719374038 | AN43: 797.7675766 | AO43: -0.0524234024 | AP43: 0.0824234024 | AZ43: 2385.96846 | BA43: -0.2215401142 | BB43: 0.0315401142 | BL43: 3985.701041 | BM43: 1.361040945 | BN43: -1.651040945 | BX43: 8095.326517 | BY43: -1.673483114 | BZ43: -0.2765168864 | CJ43: 28904.05447 | CK43: -10.94553359 | CL43: 7.485533592 | CV43: -7.92472032 | CW43: 0.09100968002 | CX43: -0.09147968002 | DH43: -16.33664991 | DI43: -0.3286499135 | DJ43: 0.3366499135
D44: 10.43626844 | E44: 0.004578440866 | F44: -0.003868440866 | P44: 39.89923488 | Q44: 0.002534876695 | R44: -0.001234876695 | AB44: 269.8957295 | AC44: -0.0942704949 | AD44: 0.004270494902 | AN44: 897.4705257 | AO44: -0.0794743111 | AP44: 0.1294743111 | AZ44: 2689.676838 | BA44: -0.2331618845 | BB44: 0.02316188454 | BL44: 4484.803375 | BM44: 1.503374823 | BN44: -1.803374823 | BX44: 9107.096154 | BY44: -2.033845626 | BZ44: -0.5161543742 | CJ44: 32514.72205 | CK44: -13.9779495 | CL44: 10.7479495 | CV44: -8.924998331 | CW44: 0.09074166862 | CX44: -0.09045166862 | DH44: -19.48051933 | DI44: -0.4715193274 | DJ44: 0.4805193274
D45: 11.87592125 | E45: 0.005491252993 | F45: -0.004621252993 | P45: 44.88714824 | Q45: 0.003348239929 | R45: -0.001148239929 | AB45: 299.90177 | AC45: -0.09823 | AD45: -0.00177 | AN45: 997.1773449 | AO45: -0.1026550921 | AP45: 0.1226550921 | AZ45: 3000.564415 | BA45: -0.2955848157 | BB45: 0.03558481572 | BL45: 4983.890947 | BM45: 1.63094719 | BN45: -2.04094719 | BX45: 9974.358752 | BY45: -2.301247906 | BZ45: -0.4787520942 | CJ45: 36124.09816 | CK45: -18.30184376 | CL45: 10.93184376 | CV45: -9.923153124 | CW45: 0.09256687609 | CX45: -0.09134687609 | DH45: -23.18075857 | DI45: -0.6707585675 | DJ45: 0.6707585675
D46: 13.49512155 | E46: 0.006181546341 | F46: -0.005321546341 | P46: 49.87426784 | Q46: 0.003467842976 | R46: -0.001267842976
D47: 14.39427973 | E47: 0.006149725268 | F47: -0.005529725268
BW54: Y | BX54: X | BY54: X2 | BZ54: X3 | CB54: X4 | CC54: X5
BW55: =BY9 -> 0.15 | BX55: =BX9 -> 990.68 | BY55: =BX55^2 -> 981446.8624 | BZ55: =BX55^3 -> 972299777.6 | CB55: =BX55^4 -> 9.632379437e+11 | CC55: =BX55^5 -> 954260566079382
BW56: 0.12 | BX56: 1988.63 | BY56: =BX56^2 -> 3954649.277 | BZ56: 7864334192 | CB56: 1.56392509e+13 | CC56: 3.110068352e+16
BW57: -0.1 | BX57: 2986.38 | BY57: 8918465.504 | BZ57: 2.663392701e+10 | CB57: 7.953902695e+13 | CC57: 2.375337593e+17
BW58: -0.3 | BX58: 3984.13 | BY58: 15873291.86 | BZ58: 6.324125829e+10 | CB58: 251961394374328 | CC58: 1.00384695e+18
BW59: -0.67 | BX59: 4981.7 | BY59: 24817334.89 | BZ59: 1.236325172e+11 | CB59: 615900111042411 | CC59: 3.068229583e+18
BW60: -1.06 | BX60: 5979.25 | BY60: 35751430.56 | BZ60: 2.137667412e+11 | CB60: 1278164787265260 | CC60: 7.642466804e+18
BW61: -1.7 | BX61: 6976.53 | BY61: 48671970.84 | BZ61: 3.395614647e+11 | CB61: 2368960745537420 | CC61: 1.652712571e+19
BW62: -1.95 | BX62: 8095.05 | BY62: 65529834.5 | BZ62: 5.304672868e+11 | CB62: 4294159209925040 | CC62: 3.476143351e+19
BW63: -2.55 | BX63: 9106.58 | BY63: 82929799.3 | BZ63: 7.552068517e+11 | CB63: 6877351611341180 | CC63: 6.262915264e+19
BW64: -2.78 | BX64: 9973.88 | BY64: 99478282.25 | BZ64: 9.921844498e+11 | CB64: 9895928640286070 | CC64: 9.870080475e+19
BX65: 0.8151376259 | BY65: 0.8287293883 | BZ65: 0.8073272309 | CB65: 0.5921022817 | CC65: 0.6113368971
BX66: =BX65/$BW$18 -> 8.17044608e-05 | BY66: =BY65/$BW$18 -> 8.306681678e-05 | BZ66: =BZ65/$BW$18 -> 8.092159409e-05 | CB66: =CB65/$BW$18 -> 5.934874814e-05 | CC66: =CC65/$BW$18 -> 6.127670955e-05
BV68: Resumen
BV70: Estadísticas de la regresión
BV71: Coeficiente de correlación múltiple | BW71: 0.9423560383
BV72: Coeficiente de determinación R^2 | BW72: 0.8880349029
BV73: R^2 ajustado | BW73: 0.7984628253
BV74: Error típico | BW74: 0.5921022817
BV75: Observaciones | BW75: 10
BV77: ANÁLISIS DE VARIANZA
BW78: Grados de libertad | BX78: Suma de cuadrados | BY78: Promedio de los cuadrados | BZ78: F | CB78: Valor crítico de F
BV79: Regresión | BW79: 4 | BX79: 13.90307444 | BY79: 3.47576861 | BZ79: 9.91419342 | CB79: 0.01350747874
BV80: Residuos | BW80: 5 | BX80: 1.75292556 | BY80: 0.350585112
BV81: Total | BW81: 9 | BX81: 15.656
BW83: Coeficientes | BX83: Error típico | BY83: Estadístico t | BZ83: Probabilidad | CB83: Inferior 95% | CC83: Superior 95% | CD83: Inferior 95,0% | CE83: Superior 95,0% | CF83: Superior 95,0%
BV84: Intercepción | BW84: 4.082199644 | BX84: 1.956900161 | BY84: 2.086054121 | BZ84: 0.09135653786 | CB84: -0.9481723632 | CC84: 9.11257165 | CD84: -0.9481723632 | CE84: 9.11257165 | CF84: 11.82710232
BV85: Variable X 1 | BW85: -0.005570054748 | BX85: 0.002178699359 | BY85: -2.556596312 | BZ85: 0.05085651516 | CB85: -0.01117057975 | CC85: 3.047025034e-05 | CD85: -0.01117057975 | CE85: 3.047025034e-05 | CF85: 0.0141361835
BV86: Variable X 2 | BW86: 2.042310965e-06 | BX86: 7.452954845e-07 | BY86: 2.740270145 | BZ86: 0.04077896109 | CB86: 1.264679307e-07 | CC86: 3.958154e-06 | CD86: 1.264679307e-07 | CE86: 3.958154e-06 | CF86: 7.489584515e-06
BV87: Variable X 3 | BW87: -2.591183937e-10 | BX87: 9.83653851e-11 | BY87: -2.634243677 | BZ87: 0.04629595866 | CB87: -5.119746659e-10 | CC87: -6.262121515e-12 | CD87: -5.119746659e-10 | CE87: -6.262121515e-12 | CF87: 1.870736034e-09
BV88: Variable X 4 | BW88: 1.089586327e-14 | BX88: 4.391966568e-15 | BY88: 2.480862069 | BZ88: 0.0557821086 | CB88: -3.940462162e-16 | CC88: 2.218577275e-14 | CD88: -3.940462162e-16 | CE88: 2.218577275e-14 | CF88: 1.228841617e-13
CF89: 7.424693806e-18

Sheet CMC (hidden)
A1: INTERVALO | B1: CMC
A2: (-68,947 a 0 kPa) (-10 psi a 0 psi) | B2: 0,23 kPa 0,034 (psi)
A3: >0 kPa a 344,738 kPa (>0 psi a 50 psi) | B3: 0,23 kPa 0,033 (psi)
A4: >344,74 kPa a 2 068,43 kPa (>50 psi a 300 psi) | B4: 0,30 kPa 0,44 (psi)
A5: >2 068,43 kPa a 20 684,27 kPa (>300 psi a 3 000 psi) | B5: 1,4 kPa 0,21 (psi)
A6: >34 473,79 kPa a 68 947,57 kPa (>5 000 psi a 10 000 psi) | B6: 9,3 kPa 1,4 (psi)
A7: >68 947,57 kPa a 248 211,26 kPa (>10 000 psi a 36 000 psi) | B7: 62 kPa 8,9 (psi)

Sheet LISTAS
A1: ESPECIALISTA TÉCNICO | B1: Nombre de firma
A2: ALEIDIMAR PIÑA | B2: firma_juancarlos | C2: 1025
A3: MICHAEL VALERO | B3: firma_germica | C3: Michael
H6: FIRMA ACTUAL | I6: CLAVE ACTUAL
A7: DIRECTOR TÉCNICO | B7: Nombre de firma | G7: Especialista | H7: =VLOOKUP(REGISTRO!D161,LISTAS!A2:B4,2,0) -> firma_germica | I7: =VLOOKUP(H7,B2:C4,2,0) -> Michael
A8: JUAN CARLOS FANEITE FINOL | B8: firma_juancarlos | C8: DIRECTOR1 | G8: Director | H8: =VLOOKUP(REGISTRO!D161,LISTAS!A8:B8,2,0) ->  | I8: =VLOOKUP(H8,B8:C11,2,0) -> 
G9: ESPECIALISTA
A16: CALIBRACIÓN EN:
A17: INSTALACIONES PERMANENTES
A18: INSTALACIONES DEL CLIENTE
A23: CALIBRATION SERVICE S.A.S. a definido su regla de decisión usando el documento ILAC-G8:09/2019 y se establece como Declaración binaria con banda de seguridad. El limite de aceptación se determinó usando la siguiente formula: LA=√(EMP^2-U^2 ) Donde LA: Límite de aceptación; EMP: Error máximo permitido; U: Incertidumbre expandida Un resultado es CONFORME cuando la corrección más (+) su Incertidumbre (±U) es menor o igual al error máximo permitido (EMP) y la corrección (el error) es menor o igual al límite de aceptación (LA), en cualquier otro caso el resultado es NO CONFORME.
P37: LUIS JORDAN
